Workbook

Sheet Calculation
A2: 1 | B2: 2 | C2: 3 | D2: 4 | E2: 5 | F2: 6 | G2: 7 | H2: 8 | I2: 9 | J2: 10 | K2: 11
A3: MM/YYYY | B3: Basic+D.A. | C3: Pensionable Salary | D3: Pension Contribution On Basic+D.A. | E3: Pension Contribution from employee @ 1.16% of the difference of wages and 15000, for the wage months on or after Sept 2014 (Live Emp) | F3: Pension Contribution On Pensionable Salary (Paid by the employer earlier) | G3: Difference Of Pension Contribution | H3: MRB | I3: Interest On Pension Contribution | J3: Pension Contribution Amount with Interest | K3: PF Interest Rate (%) as per EPFO
A4: 1995-11-01 | B4: 2111 | C4: 5000 | D4: =ROUND(B4*8.33%,0) -> 176 | E4: 0 | F4: 176 | G4: =D4+E4-F4 -> 0 | H4: 0 | I4: =ROUND(H4*K4/12,0) -> 0 | J4: =G4+I4 -> 0 | K4: 0.12
A5: 1995-12-01 | B5: 4271 | C5: 5000 | D5: 356 | E5: 0 | F5: 356 | G5: =D5+E5-F5 -> 0 | H5: =H4+G4 -> 0 | I5: =ROUND(H5*K5/12,0) -> 0 | J5: =G5+I5 -> 0 | K5: 0.12
A6: 1996-01-01 | B6: 4373 | C6: 5000 | D6: 364 | E6: 0 | F6: 364 | G6: 0 | H6: =H5+G5 -> 0 | I6: 0 | J6: 0 | K6: 0.12
A7: 1996-02-01 | B7: 4012 | C7: 5000 | D7: 334 | E7: 0 | F7: 334 | G7: 0 | H7: =H6+G6 -> 0 | I7: 0 | J7: 0 | K7: 0.12
A8: 1996-03-01 | B8: 4280 | C8: 5000 | D8: 357 | E8: 0 | F8: 357 | G8: 0 | H8: =H7+G7+SUM(I4:I7) -> 0 | I8: 0 | J8: 0 | K8: 0.12
A9: 1996-04-01 | B9: 4229 | C9: 5000 | D9: 352 | E9: 0 | F9: 352 | G9: 0 | H9: =H8+G8 -> 0 | I9: =ROUND(H9*K9/12,0) -> 0 | J9: 0 | K9: 0.12
A10: 1996-05-01 | B10: 4423 | C10: 5000 | D10: 368 | E10: 0 | F10: 368 | G10: 0 | H10: 0 | I10: 0 | J10: 0 | K10: 0.12
A11: 1996-06-01 | B11: 4384 | C11: 5000 | D11: 365 | E11: 0 | F11: 365 | G11: 0 | H11: 0 | I11: 0 | J11: 0 | K11: 0.12
A12: 1996-07-01 | B12: 4536 | C12: 5000 | D12: 378 | E12: 0 | F12: 378 | G12: 0 | H12: 0 | I12: 0 | J12: 0 | K12: 0.12
A13: 1996-08-01 | B13: 4566 | C13: 5000 | D13: 380 | E13: 0 | F13: 380 | G13: 0 | H13: 0 | I13: 0 | J13: 0 | K13: 0.12
A14: 1996-09-01 | B14: 4378 | C14: 5000 | D14: 365 | E14: 0 | F14: 365 | G14: 0 | H14: 0 | I14: 0 | J14: 0 | K14: 0.12
A15: 1996-10-01 | B15: 4543 | C15: 5000 | D15: 378 | E15: 0 | F15: 378 | G15: 0 | H15: 0 | I15: 0 | J15: 0 | K15: 0.12
A16: 1996-11-01 | B16: 4474 | C16: 5000 | D16: 373 | E16: 0 | F16: 373 | G16: 0 | H16: 0 | I16: 0 | J16: 0 | K16: 0.12
A17: 1996-12-01 | B17: 4597 | C17: 5000 | D17: 383 | E17: 0 | F17: 383 | G17: 0 | H17: 0 | I17: 0 | J17: 0 | K17: 0.12
A18: 1997-01-01 | B18: 4633 | C18: 5000 | D18: 386 | E18: 0 | F18: 386 | G18: 0 | H18: 0 | I18: 0 | J18: 0 | K18: 0.12
A19: 1997-02-01 | B19: 4371 | C19: 5000 | D19: 364 | E19: 0 | F19: 364 | G19: 0 | H19: 0 | I19: 0 | J19: 0 | K19: 0.12
A20: 1997-03-01 | B20: 4683 | C20: 5000 | D20: 390 | E20: 0 | F20: 390 | G20: 0 | H20: =H19+G19+SUM(I8:I19) -> 0 | I20: 0 | J20: 0 | K20: 0.12
A21: 1997-04-01 | B21: 4642 | C21: 5000 | D21: 387 | E21: 0 | F21: 387 | G21: 0 | H21: 0 | I21: 0 | J21: 0 | K21: 0.12
A22: 1997-05-01 | B22: 4715 | C22: 5000 | D22: 393 | E22: 0 | F22: 393 | G22: 0 | H22: 0 | I22: 0 | J22: 0 | K22: 0.12
A23: 1997-06-01 | B23: 14153 | C23: 5000 | D23: =ROUND(B23*8.33%,0) -> 1179 | E23: 0 | F23: 417 | G23: =D23+E23-F23 -> 762 | H23: 0 | I23: =ROUND(H23*K23/12,0) -> 0 | J23: =G23+I23 -> 762 | K23: 0.12
A24: 1997-07-01 | B24: 5533 | C24: 5000 | D24: 461 | E24: 0 | F24: 417 | G24: =D24+E24-F24 -> 44 | H24: =H23+G23 -> 762 | I24: =ROUND(H24*K24/12,0) -> 8 | J24: 52 | K24: 0.12
A25: 1997-08-01 | B25: 5743 | C25: 5000 | D25: 478 | E25: 0 | F25: 417 | G25: 61 | H25: =H24+G24 -> 806 | I25: =ROUND(H25*K25/12,0) -> 8 | J25: 69 | K25: 0.12
A26: 1997-09-01 | B26: 5727 | C26: 5000 | D26: 477 | E26: 0 | F26: 417 | G26: 60 | H26: 867 | I26: 9 | J26: 69 | K26: 0.12
A27: 1997-10-01 | B27: 5743 | C27: 5000 | D27: 478 | E27: 0 | F27: 417 | G27: 61 | H27: 927 | I27: 9 | J27: 70 | K27: 0.12
A28: 1997-11-01 | B28: 5811 | C28: 5000 | D28: 484 | E28: 0 | F28: 417 | G28: 67 | H28: 988 | I28: 10 | J28: 77 | K28: 0.12
A29: 1997-12-01 | B29: 5908 | C29: 5000 | D29: 492 | E29: 0 | F29: 417 | G29: 75 | H29: 1055 | I29: 11 | J29: 86 | K29: 0.12
A30: 1998-01-01 | B30: 5875 | C30: 5000 | D30: 489 | E30: 0 | F30: 417 | G30: 72 | H30: 1130 | I30: 11 | J30: 83 | K30: 0.12
A31: 1998-02-01 | B31: 6071 | C31: 5000 | D31: 506 | E31: 0 | F31: 417 | G31: 89 | H31: 1202 | I31: 12 | J31: 101 | K31: 0.12
A32: 1998-03-01 | B32: 6167 | C32: 5000 | D32: 514 | E32: 0 | F32: 417 | G32: 97 | H32: =H31+G31+SUM(I20:I31) -> 1369 | I32: 14 | J32: 111 | K32: 0.12
A33: 1998-04-01 | B33: 6294 | C33: 5000 | D33: 524 | E33: 0 | F33: 417 | G33: 107 | H33: 1466 | I33: 15 | J33: 122 | K33: 0.12
A34: 1998-05-01 | B34: 6283 | C34: 5000 | D34: 523 | E34: 0 | F34: 417 | G34: 106 | H34: 1573 | I34: 16 | J34: 122 | K34: 0.12
A35: 1998-06-01 | B35: 6391 | C35: 5000 | D35: 532 | E35: 0 | F35: 417 | G35: 115 | H35: 1679 | I35: 17 | J35: 132 | K35: 0.12
A36: 1998-07-01 | B36: 6547 | C36: 5000 | D36: 545 | E36: 0 | F36: 417 | G36: 128 | H36: 1794 | I36: 18 | J36: 146 | K36: 0.12
A37: 1998-08-01 | B37: 6650 | C37: 5000 | D37: 554 | E37: 0 | F37: 417 | G37: 137 | H37: 1922 | I37: 19 | J37: 156 | K37: 0.12
A38: 1998-09-01 | B38: 6830 | C38: 5000 | D38: 569 | E38: 0 | F38: 417 | G38: 152 | H38: 2059 | I38: 21 | J38: 173 | K38: 0.12
A39: 1998-10-01 | B39: 6811 | C39: 5000 | D39: 567 | E39: 0 | F39: 417 | G39: 150 | H39: 2211 | I39: 22 | J39: 172 | K39: 0.12
A40: 1998-11-01 | B40: 6243 | C40: 5000 | D40: 520 | E40: 0 | F40: 417 | G40: 103 | H40: 2361 | I40: 24 | J40: 127 | K40: 0.12
A41: 1998-12-01 | B41: 7058 | C41: 5000 | D41: 588 | E41: 0 | F41: 417 | G41: 171 | H41: 2464 | I41: 25 | J41: 196 | K41: 0.12
A42: 1999-01-01 | B42: 6931 | C42: 5000 | D42: 577 | E42: 0 | F42: 417 | G42: 160 | H42: 2635 | I42: 26 | J42: 186 | K42: 0.12
A43: 1999-02-01 | B43: 7320 | C43: 5000 | D43: 610 | E43: 0 | F43: 417 | G43: 193 | H43: 2795 | I43: 28 | J43: 221 | K43: 0.12
A44: 1999-03-01 | B44: 6935 | C44: 5000 | D44: 578 | E44: 0 | F44: 417 | G44: 161 | H44: =H43+G43+SUM(I32:I43) -> 3233 | I44: =ROUND(H44*K44/12,0) -> 32 | J44: 193 | K44: 0.12
A45: 1999-04-01 | B45: 6865 | C45: 5000 | D45: 572 | E45: 0 | F45: 417 | G45: 155 | H45: 3394 | I45: 34 | J45: 189 | K45: 0.12
A46: 1999-05-01 | B46: 6950 | C46: 5000 | D46: 579 | E46: 0 | F46: 417 | G46: 162 | H46: 3549 | I46: 35 | J46: 197 | K46: 0.12
A47: 1999-06-01 | B47: 7001 | C47: 5000 | D47: 583 | E47: 0 | F47: 417 | G47: 166 | H47: 3711 | I47: 37 | J47: 203 | K47: 0.12
A48: 1999-07-01 | B48: 7115 | C48: 5000 | D48: 593 | E48: 0 | F48: 417 | G48: 176 | H48: 3877 | I48: 39 | J48: 215 | K48: 0.12
A49: 1999-08-01 | B49: 7076 | C49: 5000 | D49: 589 | E49: 0 | F49: 417 | G49: 172 | H49: 4053 | I49: 41 | J49: 213 | K49: 0.12
A50: 1999-09-01 | B50: 7120 | C50: 5000 | D50: 593 | E50: 0 | F50: 417 | G50: 176 | H50: 4225 | I50: 42 | J50: 218 | K50: 0.12
A51: 1999-10-01 | B51: 7131 | C51: 5000 | D51: 594 | E51: 0 | F51: 417 | G51: 177 | H51: 4401 | I51: 44 | J51: 221 | K51: 0.12
A52: 1999-11-01 | B52: 7136 | C52: 5000 | D52: 594 | E52: 0 | F52: 417 | G52: 177 | H52: 4578 | I52: 46 | J52: 223 | K52: 0.12
A53: 1999-12-01 | B53: 7153 | C53: 5000 | D53: 596 | E53: 0 | F53: 417 | G53: 179 | H53: 4755 | I53: 48 | J53: 227 | K53: 0.12
A54: 2000-01-01 | B54: 7081 | C54: 5000 | D54: 590 | E54: 0 | F54: 417 | G54: 173 | H54: 4934 | I54: 49 | J54: 222 | K54: 0.12
A55: 2000-02-01 | B55: 7076 | C55: 5000 | D55: 589 | E55: 0 | F55: 417 | G55: 172 | H55: 5107 | I55: 51 | J55: 223 | K55: 0.12
A56: 2000-03-01 | B56: 7367 | C56: 5000 | D56: 614 | E56: 0 | F56: 417 | G56: 197 | H56: =H55+G55+SUM(I44:I55) -> 5777 | I56: =ROUND(H56*K56/12,0) -> 58 | J56: 255 | K56: 0.12
A57: 2000-04-01 | B57: 7450 | C57: 5000 | D57: 621 | E57: 0 | F57: 417 | G57: 204 | H57: 5974 | I57: 60 | J57: 264 | K57: 0.12
A58: 2000-05-01 | B58: 7583 | C58: 5000 | D58: 632 | E58: 0 | F58: 417 | G58: 215 | H58: 6178 | I58: 62 | J58: 277 | K58: 0.12
A59: 2000-06-01 | B59: 7800 | C59: 5000 | D59: 650 | E59: 0 | F59: 417 | G59: 233 | H59: 6393 | I59: 59 | J59: 292 | K59: 0.11
A60: 2000-07-01 | B60: 7967 | C60: 5000 | D60: 664 | E60: 0 | F60: 417 | G60: 247 | H60: 6626 | I60: 61 | J60: 308 | K60: 0.11
A61: 2000-08-01 | B61: 8000 | C61: 5000 | D61: 666 | E61: 0 | F61: 417 | G61: 249 | H61: 6873 | I61: 63 | J61: 312 | K61: 0.11
A62: 2000-09-01 | B62: 7975 | C62: 5000 | D62: 664 | E62: 0 | F62: 417 | G62: 247 | H62: 7122 | I62: 65 | J62: 312 | K62: 0.11
A63: 2000-10-01 | B63: 7783 | C63: 5000 | D63: 648 | E63: 0 | F63: 417 | G63: 231 | H63: 7369 | I63: 68 | J63: 299 | K63: 0.11
A64: 2000-11-01 | B64: 7900 | C64: 5000 | D64: 658 | E64: 0 | F64: 417 | G64: 241 | H64: 7600 | I64: 70 | J64: 311 | K64: 0.11
A65: 2000-12-01 | B65: 8017 | C65: 5000 | D65: 668 | E65: 0 | F65: 417 | G65: 251 | H65: 7841 | I65: 72 | J65: 323 | K65: 0.11
A66: 2001-01-01 | B66: 8067 | C66: 5000 | D66: 672 | E66: 0 | F66: 417 | G66: 255 | H66: 8092 | I66: 74 | J66: 329 | K66: 0.11
A67: 2001-02-01 | B67: 7983 | C67: 5000 | D67: 665 | E67: 0 | F67: 417 | G67: 248 | H67: 8347 | I67: 77 | J67: 325 | K67: 0.11
A68: 2001-03-01 | B68: 8083 | C68: 5000 | D68: =ROUND(B68*8.33%,0) -> 673 | E68: 0 | F68: 417 | G68: =D68+E68-F68 -> 256 | H68: =H67+G67+SUM(I56:I67) -> 9384 | I68: 74 | J68: 330 | K68: 0.095
A69: 2001-04-01 | B69: 8008 | C69: 5000 | D69: 667 | E69: 0 | F69: 417 | G69: 250 | H69: 9640 | I69: =ROUND(H69*K69/12,0) -> 76 | J69: =G69+I69 -> 326 | K69: 0.095
A70: 2001-05-01 | B70: 7808 | C70: 5000 | D70: 650 | E70: 0 | F70: 417 | G70: 233 | H70: =H69+G69 -> 9890 | I70: 78 | J70: 311 | K70: 0.095
A71: 2001-06-01 | B71: 8283 | C71: 6500 | D71: 690 | E71: 0 | F71: 541 | G71: 149 | H71: 10123 | I71: 80 | J71: 229 | K71: 0.095
A72: 2001-07-01 | B72: 8275 | C72: 6500 | D72: 689 | E72: 0 | F72: 541 | G72: 148 | H72: 10272 | I72: 81 | J72: 229 | K72: 0.095
A73: 2001-08-01 | B73: 8375 | C73: 6500 | D73: 698 | E73: 0 | F73: 541 | G73: 157 | H73: 10420 | I73: 82 | J73: 239 | K73: 0.095
A74: 2001-09-01 | B74: 8242 | C74: 6500 | D74: 687 | E74: 0 | F74: 541 | G74: 146 | H74: 10577 | I74: 84 | J74: 230 | K74: 0.095
A75: 2001-10-01 | B75: 8517 | C75: 6500 | D75: 709 | E75: 0 | F75: 541 | G75: 168 | H75: 10723 | I75: 85 | J75: 253 | K75: 0.095
A76: 2001-11-01 | B76: 8500 | C76: 6500 | D76: 708 | E76: 0 | F76: 541 | G76: 167 | H76: 10891 | I76: 86 | J76: 253 | K76: 0.095
A77: 2001-12-01 | B77: 7983 | C77: 6500 | D77: 665 | E77: 0 | F77: 541 | G77: 124 | H77: 11058 | I77: 88 | J77: 212 | K77: 0.095
A78: 2002-01-01 | B78: 8608 | C78: 6500 | D78: 717 | E78: 0 | F78: 541 | G78: 176 | H78: 11182 | I78: 89 | J78: 265 | K78: 0.095
A79: 2002-02-01 | B79: 8550 | C79: 6500 | D79: 712 | E79: 0 | F79: 541 | G79: 171 | H79: 11358 | I79: 90 | J79: 261 | K79: 0.095
A80: 2002-03-01 | B80: 8675 | C80: 6500 | D80: 723 | E80: 0 | F80: 541 | G80: 182 | H80: =H79+G79+SUM(I68:I79) -> 12522 | I80: 99 | J80: 281 | K80: 0.095
A81: 2002-04-01 | B81: 8817 | C81: 6500 | D81: 734 | E81: 0 | F81: 541 | G81: 193 | H81: 12704 | I81: 101 | J81: 294 | K81: 0.095
A82: 2002-05-01 | B82: 8992 | C82: 6500 | D82: 749 | E82: 0 | F82: 541 | G82: 208 | H82: 12897 | I82: 102 | J82: 310 | K82: 0.095
A83: 2002-06-01 | B83: 9017 | C83: 6500 | D83: 751 | E83: 0 | F83: 541 | G83: 210 | H83: 13105 | I83: 104 | J83: 314 | K83: 0.095
A84: 2002-07-01 | B84: 9033 | C84: 6500 | D84: 752 | E84: 0 | F84: 541 | G84: 211 | H84: 13315 | I84: 105 | J84: 316 | K84: 0.095
A85: 2002-08-01 | B85: 9125 | C85: 6500 | D85: 760 | E85: 0 | F85: 541 | G85: 219 | H85: 13526 | I85: 107 | J85: 326 | K85: 0.095
A86: 2002-09-01 | B86: 9133 | C86: 6500 | D86: 761 | E86: 0 | F86: 541 | G86: 220 | H86: 13745 | I86: 109 | J86: 329 | K86: 0.095
A87: 2002-10-01 | B87: 8858 | C87: 6500 | D87: 738 | E87: 0 | F87: 541 | G87: 197 | H87: 13965 | I87: 111 | J87: 308 | K87: 0.095
A88: 2002-11-01 | B88: 9200 | C88: 6500 | D88: 766 | E88: 0 | F88: 541 | G88: 225 | H88: 14162 | I88: 112 | J88: 337 | K88: 0.095
A89: 2002-12-01 | B89: 9200 | C89: 6500 | D89: 766 | E89: 0 | F89: 541 | G89: 225 | H89: 14387 | I89: 114 | J89: 339 | K89: 0.095
A90: 2003-01-01 | B90: 9242 | C90: 6500 | D90: 770 | E90: 0 | F90: 541 | G90: 229 | H90: 14612 | I90: 116 | J90: 345 | K90: 0.095
A91: 2003-02-01 | B91: 9317 | C91: 6500 | D91: 776 | E91: 0 | F91: 541 | G91: 235 | H91: 14841 | I91: 117 | J91: 352 | K91: 0.095
A92: 2003-03-01 | B92: 9408 | C92: 6500 | D92: 784 | E92: 0 | F92: 541 | G92: 243 | H92: =H91+G91+SUM(I80:I91) -> 16373 | I92: 130 | J92: 373 | K92: 0.095
A93: 2003-04-01 | B93: 9408 | C93: 6500 | D93: 784 | E93: 0 | F93: 541 | G93: 243 | H93: 16616 | I93: 132 | J93: 375 | K93: 0.095
A94: 2003-05-01 | B94: 9633 | C94: 6500 | D94: 802 | E94: 0 | F94: 541 | G94: 261 | H94: 16859 | I94: 133 | J94: 394 | K94: 0.095
A95: 2003-06-01 | B95: 9767 | C95: 6500 | D95: 814 | E95: 0 | F95: 541 | G95: 273 | H95: 17120 | I95: 136 | J95: 409 | K95: 0.095
A96: 2003-07-01 | B96: 9783 | C96: 6500 | D96: 815 | E96: 0 | F96: 541 | G96: 274 | H96: 17393 | I96: 138 | J96: 412 | K96: 0.095
A97: 2003-08-01 | B97: 9467 | C97: 6500 | D97: 789 | E97: 0 | F97: 541 | G97: 248 | H97: 17667 | I97: 140 | J97: 388 | K97: 0.095
A98: 2003-09-01 | B98: 9850 | C98: 6500 | D98: 821 | E98: 0 | F98: 541 | G98: 280 | H98: 17915 | I98: 142 | J98: 422 | K98: 0.095
A99: 2003-10-01 | B99: 9733 | C99: 6500 | D99: 811 | E99: 0 | F99: 541 | G99: 270 | H99: 18195 | I99: 144 | J99: 414 | K99: 0.095
A100: 2003-11-01 | B100: 9733 | C100: 6500 | D100: 811 | E100: 0 | F100: 541 | G100: 270 | H100: 18465 | I100: 146 | J100: 416 | K100: 0.095
A101: 2003-12-01 | B101: 9767 | C101: 6500 | D101: 814 | E101: 0 | F101: 541 | G101: 273 | H101: 18735 | I101: 148 | J101: 421 | K101: 0.095
A102: 2004-01-01 | B102: 9800 | C102: 6500 | D102: 816 | E102: 0 | F102: 541 | G102: 275 | H102: 19008 | I102: 150 | J102: 425 | K102: 0.095
A103: 2004-02-01 | B103: 9850 | C103: 6500 | D103: 821 | E103: 0 | F103: 541 | G103: 280 | H103: 19283 | I103: 153 | J103: 433 | K103: 0.095
A104: 2004-03-01 | B104: 9850 | C104: 6500 | D104: 821 | E104: 0 | F104: 541 | G104: 280 | H104: =H103+G103+SUM(I92:I103) -> 21255 | I104: 168 | J104: 448 | K104: 0.095
A105: 2004-04-01 | B105: 9933 | C105: 6500 | D105: 827 | E105: 0 | F105: 541 | G105: 286 | H105: 21535 | I105: 170 | J105: 456 | K105: 0.095
A106: 2004-05-01 | B106: 10133 | C106: 6500 | D106: 844 | E106: 0 | F106: 541 | G106: 303 | H106: 21821 | I106: 173 | J106: 476 | K106: 0.095
A107: 2004-06-01 | B107: 10158 | C107: 6500 | D107: 846 | E107: 0 | F107: 541 | G107: 305 | H107: 22124 | I107: 175 | J107: 480 | K107: 0.095
A108: 2004-07-01 | B108: 10183 | C108: 6500 | D108: 848 | E108: 0 | F108: 541 | G108: 307 | H108: 22429 | I108: 178 | J108: 485 | K108: 0.095
A109: 2004-08-01 | B109: 10225 | C109: 6500 | D109: 852 | E109: 0 | F109: 541 | G109: 311 | H109: 22736 | I109: 180 | J109: 491 | K109: 0.095
A110: 2004-09-01 | B110: 10325 | C110: 6500 | D110: 860 | E110: 0 | F110: 541 | G110: 319 | H110: 23047 | I110: 182 | J110: 501 | K110: 0.095
A111: 2004-10-01 | B111: 10367 | C111: 6500 | D111: 864 | E111: 0 | F111: 541 | G111: 323 | H111: 23366 | I111: 185 | J111: 508 | K111: 0.095
A112: 2004-11-01 | B112: 10400 | C112: 6500 | D112: 866 | E112: 0 | F112: 541 | G112: 325 | H112: 23689 | I112: 188 | J112: 513 | K112: 0.095
A113: 2004-12-01 | B113: 10442 | C113: 6500 | D113: 870 | E113: 0 | F113: 541 | G113: 329 | H113: 24014 | I113: 190 | J113: 519 | K113: 0.095
A114: 2005-01-01 | B114: 10425 | C114: 6500 | D114: 868 | E114: 0 | F114: 541 | G114: 327 | H114: 24343 | I114: 193 | J114: 520 | K114: 0.095
A115: 2005-02-01 | B115: 10375 | C115: 6500 | D115: 864 | E115: 0 | F115: 541 | G115: 323 | H115: 24670 | I115: 195 | J115: 518 | K115: 0.095
A116: 2005-03-01 | B116: 10508 | C116: 6500 | D116: 875 | E116: 0 | F116: 541 | G116: 334 | H116: =H115+G115+SUM(I104:I115) -> 27170 | I116: 192 | J116: 526 | K116: 0.085
A117: 2005-04-01 | B117: 9942 | C117: 6500 | D117: 828 | E117: 0 | F117: 541 | G117: 287 | H117: 27504 | I117: 195 | J117: 482 | K117: 0.085
A118: 2005-05-01 | B118: 10617 | C118: 6500 | D118: 884 | E118: 0 | F118: 541 | G118: 343 | H118: 27791 | I118: 197 | J118: 540 | K118: 0.085
A119: 2005-06-01 | B119: 10658 | C119: 6500 | D119: 888 | E119: 0 | F119: 541 | G119: 347 | H119: 28134 | I119: 199 | J119: 546 | K119: 0.085
A120: 2005-07-01 | B120: 9958 | C120: 6500 | D120: 830 | E120: 0 | F120: 541 | G120: 289 | H120: 28481 | I120: 202 | J120: 491 | K120: 0.085
A121: 2005-08-01 | B121: 10075 | C121: 6500 | D121: 839 | E121: 0 | F121: 541 | G121: 298 | H121: 28770 | I121: 204 | J121: 502 | K121: 0.085
A122: 2005-09-01 | B122: 10317 | C122: 6500 | D122: 859 | E122: 0 | F122: 541 | G122: 318 | H122: 29068 | I122: 206 | J122: 524 | K122: 0.085
A123: 2005-10-01 | B123: 10433 | C123: 6500 | D123: 869 | E123: 0 | F123: 541 | G123: 328 | H123: 29386 | I123: =ROUND(H123*K123/12,0) -> 208 | J123: 536 | K123: 0.085
A124: 2005-11-01 | B124: 10400 | C124: 6500 | D124: 866 | E124: 0 | F124: 541 | G124: 325 | H124: 29714 | I124: 210 | J124: 535 | K124: 0.085
A125: 2005-12-01 | B125: 10533 | C125: 6500 | D125: 877 | E125: 0 | F125: 541 | G125: 336 | H125: 30039 | I125: 213 | J125: 549 | K125: 0.085
A126: 2006-01-01 | B126: 10617 | C126: 6500 | D126: 884 | E126: 0 | F126: 541 | G126: 343 | H126: 30375 | I126: 215 | J126: 558 | K126: 0.085
A127: 2006-02-01 | B127: 10658 | C127: 6500 | D127: 888 | E127: 0 | F127: 541 | G127: 347 | H127: 30718 | I127: 218 | J127: 565 | K127: 0.085
A128: 2006-03-01 | B128: 10567 | C128: 6500 | D128: 880 | E128: 0 | F128: 541 | G128: 339 | H128: =H127+G127+SUM(I116:I127) -> 33524 | I128: 237 | J128: 576 | K128: 0.085
A129: 2006-04-01 | B129: 10817 | C129: 6500 | D129: 901 | E129: 0 | F129: 541 | G129: 360 | H129: 33863 | I129: 240 | J129: 600 | K129: 0.085
A130: 2006-05-01 | B130: 10792 | C130: 6500 | D130: 899 | E130: 0 | F130: 541 | G130: 358 | H130: 34223 | I130: 242 | J130: 600 | K130: 0.085
A131: 2006-06-01 | B131: 12233 | C131: 6500 | D131: 1019 | E131: 0 | F131: 541 | G131: 478 | H131: 34581 | I131: 245 | J131: 723 | K131: 0.085
A132: 2006-07-01 | B132: 13025 | C132: 6500 | D132: =ROUND(B132*8.33%,0) -> 1085 | E132: 0 | F132: 541 | G132: =D132+E132-F132 -> 544 | H132: 35059 | I132: 248 | J132: 792 | K132: 0.085
A133: 2006-08-01 | B133: 13908 | C133: 6500 | D133: 1159 | E133: 0 | F133: 541 | G133: 618 | H133: 35603 | I133: =ROUND(H133*K133/12,0) -> 252 | J133: =G133+I133 -> 870 | K133: 0.085
A134: 2006-09-01 | B134: 13267 | C134: 6500 | D134: 1105 | E134: 0 | F134: 541 | G134: 564 | H134: =H133+G133 -> 36221 | I134: 257 | J134: 821 | K134: 0.085
A135: 2006-10-01 | B135: 13367 | C135: 6500 | D135: 1113 | E135: 0 | F135: 541 | G135: 572 | H135: 36785 | I135: 261 | J135: 833 | K135: 0.085
A136: 2006-11-01 | B136: 13408 | C136: 6500 | D136: 1117 | E136: 0 | F136: 541 | G136: 576 | H136: 37357 | I136: 265 | J136: 841 | K136: 0.085
A137: 2006-12-01 | B137: 13583 | C137: 6500 | D137: 1131 | E137: 0 | F137: 541 | G137: 590 | H137: 37933 | I137: 269 | J137: 859 | K137: 0.085
A138: 2007-01-01 | B138: 13500 | C138: 6500 | D138: 1125 | E138: 0 | F138: 541 | G138: 584 | H138: 38523 | I138: 273 | J138: 857 | K138: 0.085
A139: 2007-02-01 | B139: 13483 | C139: 6500 | D139: 1123 | E139: 0 | F139: 541 | G139: 582 | H139: 39107 | I139: 277 | J139: 859 | K139: 0.085
A140: 2007-03-01 | B140: 13583 | C140: 6500 | D140: 1131 | E140: 0 | F140: 541 | G140: 590 | H140: =H139+G139+SUM(I128:I139) -> 42755 | I140: 303 | J140: 893 | K140: 0.085
A141: 2007-04-01 | B141: 13583 | C141: 6500 | D141: 1131 | E141: 0 | F141: 541 | G141: 590 | H141: 43345 | I141: 307 | J141: 897 | K141: 0.085
A142: 2007-05-01 | B142: 13600 | C142: 6500 | D142: 1133 | E142: 0 | F142: 541 | G142: 592 | H142: 43935 | I142: 311 | J142: 903 | K142: 0.085
A143: 2007-06-01 | B143: 9267 | C143: 6500 | D143: 772 | E143: 0 | F143: 541 | G143: 231 | H143: 44527 | I143: 315 | J143: 546 | K143: 0.085
A144: 2007-07-01 | B144: 12075 | C144: 6500 | D144: 1006 | E144: 0 | F144: 541 | G144: 465 | H144: 44758 | I144: 317 | J144: 782 | K144: 0.085
A145: 2007-08-01 | B145: 12208 | C145: 6500 | D145: 1017 | E145: 0 | F145: 541 | G145: 476 | H145: 45223 | I145: 320 | J145: 796 | K145: 0.085
A146: 2007-09-01 | B146: 12283 | C146: 6500 | D146: 1023 | E146: 0 | F146: 541 | G146: 482 | H146: 45699 | I146: 324 | J146: 806 | K146: 0.085
A147: 2007-10-01 | B147: 12258 | C147: 6500 | D147: 1021 | E147: 0 | F147: 541 | G147: 480 | H147: 46181 | I147: 327 | J147: 807 | K147: 0.085
A148: 2007-11-01 | B148: 12333 | C148: 6500 | D148: 1027 | E148: 0 | F148: 541 | G148: 486 | H148: 46661 | I148: 331 | J148: 817 | K148: 0.085
A149: 2007-12-01 | B149: 12475 | C149: 6500 | D149: 1039 | E149: 0 | F149: 541 | G149: 498 | H149: 47147 | I149: 334 | J149: 832 | K149: 0.085
A150: 2008-01-01 | B150: 12408 | C150: 6500 | D150: 1034 | E150: 0 | F150: 541 | G150: 493 | H150: 47645 | I150: 337 | J150: 830 | K150: 0.085
A151: 2008-02-01 | B151: 13858 | C151: 6500 | D151: 1154 | E151: 0 | F151: 541 | G151: 613 | H151: 48138 | I151: 341 | J151: 954 | K151: 0.085
A152: 2008-03-01 | B152: 12942 | C152: 6500 | D152: 1078 | E152: 0 | F152: 541 | G152: 537 | H152: =H151+G151+SUM(I140:I151) -> 52618 | I152: 373 | J152: 910 | K152: 0.085
A153: 2008-04-01 | B153: 12475 | C153: 6500 | D153: 1039 | E153: 0 | F153: 541 | G153: 498 | H153: 53155 | I153: 377 | J153: 875 | K153: 0.085
A154: 2008-05-01 | B154: 12600 | C154: 6500 | D154: 1050 | E154: 0 | F154: 541 | G154: 509 | H154: 53653 | I154: 380 | J154: 889 | K154: 0.085
A155: 2008-06-01 | B155: 12592 | C155: 6500 | D155: 1049 | E155: 0 | F155: 541 | G155: 508 | H155: 54162 | I155: 384 | J155: 892 | K155: 0.085
A156: 2008-07-01 | B156: 12742 | C156: 6500 | D156: 1061 | E156: 0 | F156: 541 | G156: 520 | H156: 54670 | I156: 387 | J156: 907 | K156: 0.085
A157: 2008-08-01 | B157: 12800 | C157: 6500 | D157: 1066 | E157: 0 | F157: 541 | G157: 525 | H157: 55190 | I157: 391 | J157: 916 | K157: 0.085
A158: 2008-09-01 | B158: 12925 | C158: 6500 | D158: 1077 | E158: 0 | F158: 541 | G158: 536 | H158: 55715 | I158: 395 | J158: 931 | K158: 0.085
A159: 2008-10-01 | B159: 12992 | C159: 6500 | D159: 1082 | E159: 0 | F159: 541 | G159: 541 | H159: 56251 | I159: 398 | J159: 939 | K159: 0.085
A160: 2008-11-01 | B160: 13058 | C160: 6500 | D160: 1088 | E160: 0 | F160: 541 | G160: 547 | H160: 56792 | I160: 402 | J160: 949 | K160: 0.085
A161: 2008-12-01 | B161: 13383 | C161: 6500 | D161: 1115 | E161: 0 | F161: 541 | G161: 574 | H161: 57339 | I161: 406 | J161: 980 | K161: 0.085
A162: 2009-01-01 | B162: 13325 | C162: 6500 | D162: 1110 | E162: 0 | F162: 541 | G162: 569 | H162: 57913 | I162: 410 | J162: 979 | K162: 0.085
A163: 2009-02-01 | B163: 14600 | C163: 6500 | D163: 1216 | E163: 0 | F163: 541 | G163: 675 | H163: 58482 | I163: 414 | J163: 1089 | K163: 0.085
A164: 2009-03-01 | B164: 13458 | C164: 6500 | D164: 1121 | E164: 0 | F164: 541 | G164: 580 | H164: =H163+G163+SUM(I152:I163) -> 63874 | I164: 452 | J164: 1032 | K164: 0.085
A165: 2009-04-01 | B165: 13383 | C165: 6500 | D165: 1115 | E165: 0 | F165: 541 | G165: 574 | H165: 64454 | I165: 457 | J165: 1031 | K165: 0.085
A166: 2009-05-01 | B166: 13350 | C166: 6500 | D166: 1112 | E166: 0 | F166: 541 | G166: 571 | H166: 65028 | I166: 461 | J166: 1032 | K166: 0.085
A167: 2009-06-01 | B167: 13500 | C167: 6500 | D167: 1125 | E167: 0 | F167: 541 | G167: 584 | H167: 65599 | I167: 465 | J167: 1049 | K167: 0.085
A168: 2009-07-01 | B168: 13433 | C168: 6500 | D168: 1119 | E168: 0 | F168: 541 | G168: 578 | H168: 66183 | I168: 469 | J168: 1047 | K168: 0.085
A169: 2009-08-01 | B169: 13483 | C169: 6500 | D169: 1123 | E169: 0 | F169: 541 | G169: 582 | H169: 66761 | I169: 473 | J169: 1055 | K169: 0.085
A170: 2009-09-01 | B170: 13808 | C170: 6500 | D170: 1150 | E170: 0 | F170: 541 | G170: 609 | H170: 67343 | I170: 477 | J170: 1086 | K170: 0.085
A171: 2009-10-01 | B171: 13983 | C171: 6500 | D171: 1165 | E171: 0 | F171: 541 | G171: 624 | H171: 67952 | I171: 481 | J171: 1105 | K171: 0.085
A172: 2009-11-01 | B172: 13933 | C172: 6500 | D172: 1161 | E172: 0 | F172: 541 | G172: 620 | H172: 68576 | I172: 486 | J172: 1106 | K172: 0.085
A173: 2009-12-01 | B173: 14183 | C173: 6500 | D173: 1181 | E173: 0 | F173: 541 | G173: 640 | H173: 69196 | I173: 490 | J173: 1130 | K173: 0.085
A174: 2010-01-01 | B174: 12242 | C174: 6500 | D174: 1020 | E174: 0 | F174: 541 | G174: 479 | H174: 69836 | I174: 495 | J174: 974 | K174: 0.085
A175: 2010-02-01 | B175: 14642 | C175: 6500 | D175: 1220 | E175: 0 | F175: 541 | G175: 679 | H175: 70315 | I175: 498 | J175: 1177 | K175: 0.085
A176: 2010-03-01 | B176: 14625 | C176: 6500 | D176: 1218 | E176: 0 | F176: 541 | G176: 677 | H176: =H175+G175+SUM(I164:I175) -> 76698 | I176: 607 | J176: 1284 | K176: 0.095
A177: 2010-04-01 | B177: 14442 | C177: 6500 | D177: 1203 | E177: 0 | F177: 541 | G177: 662 | H177: 77375 | I177: 613 | J177: 1275 | K177: 0.095
A178: 2010-05-01 | B178: 14317 | C178: 6500 | D178: 1193 | E178: 0 | F178: 541 | G178: 652 | H178: 78037 | I178: 618 | J178: 1270 | K178: 0.095
A179: 2010-06-01 | B179: 14375 | C179: 6500 | D179: 1197 | E179: 0 | F179: 541 | G179: 656 | H179: 78689 | I179: 623 | J179: 1279 | K179: 0.095
A180: 2010-07-01 | B180: 14267 | C180: 6500 | D180: 1188 | E180: 0 | F180: 541 | G180: 647 | H180: 79345 | I180: 628 | J180: 1275 | K180: 0.095
A181: 2010-08-01 | B181: 14617 | C181: 6500 | D181: 1218 | E181: 0 | F181: 541 | G181: 677 | H181: 79992 | I181: 633 | J181: 1310 | K181: 0.095
A182: 2010-09-01 | B182: 14775 | C182: 6500 | D182: 1231 | E182: 0 | F182: 541 | G182: 690 | H182: 80669 | I182: 639 | J182: 1329 | K182: 0.095
A183: 2010-10-01 | B183: 14908 | C183: 6500 | D183: 1242 | E183: 0 | F183: 541 | G183: 701 | H183: 81359 | I183: 644 | J183: 1345 | K183: 0.095
A184: 2010-11-01 | B184: 15100 | C184: 6500 | D184: 1258 | E184: 0 | F184: 541 | G184: 717 | H184: 82060 | I184: 650 | J184: 1367 | K184: 0.095
A185: 2010-12-01 | B185: 15308 | C185: 6500 | D185: 1275 | E185: 0 | F185: 541 | G185: 734 | H185: 82777 | I185: 655 | J185: 1389 | K185: 0.095
A186: 2011-01-01 | B186: 15367 | C186: 6500 | D186: 1280 | E186: 0 | F186: 541 | G186: 739 | H186: 83511 | I186: 661 | J186: 1400 | K186: 0.095
A187: 2011-02-01 | B187: 15492 | C187: 6500 | D187: 1290 | E187: 0 | F187: 541 | G187: 749 | H187: 84250 | I187: 667 | J187: 1416 | K187: 0.095
A188: 2011-03-01 | B188: 15508 | C188: 6500 | D188: 1292 | E188: 0 | F188: 541 | G188: 751 | H188: =H187+G187+SUM(I176:I187) -> 92637 | I188: 637 | J188: 1388 | K188: 0.0825
A189: 2011-04-01 | B189: 15433 | C189: 6500 | D189: 1286 | E189: 0 | F189: 541 | G189: 745 | H189: 93388 | I189: 642 | J189: 1387 | K189: 0.0825
A190: 2011-05-01 | B190: 15433 | C190: 6500 | D190: 1286 | E190: 0 | F190: 541 | G190: 745 | H190: 94133 | I190: 647 | J190: 1392 | K190: 0.0825
A191: 2011-06-01 | B191: 15400 | C191: 6500 | D191: 1283 | E191: 0 | F191: 541 | G191: 742 | H191: 94878 | I191: 652 | J191: 1394 | K191: 0.0825
A192: 2011-07-01 | B192: 15625 | C192: 6500 | D192: 1302 | E192: 0 | F192: 541 | G192: 761 | H192: 95620 | I192: 657 | J192: 1418 | K192: 0.0825
A193: 2011-08-01 | B193: 15808 | C193: 6500 | D193: 1317 | E193: 0 | F193: 541 | G193: 776 | H193: 96381 | I193: 663 | J193: 1439 | K193: 0.0825
A194: 2011-09-01 | B194: 15900 | C194: 6500 | D194: 1324 | E194: 0 | F194: 541 | G194: 783 | H194: 97157 | I194: 668 | J194: 1451 | K194: 0.0825
A195: 2011-10-01 | B195: 16100 | C195: 6500 | D195: 1341 | E195: 0 | F195: 541 | G195: 800 | H195: 97940 | I195: 673 | J195: 1473 | K195: 0.0825
A196: 2011-11-01 | B196: 16483 | C196: 6500 | D196: =ROUND(B196*8.33%,0) -> 1373 | E196: 0 | F196: 541 | G196: =D196+E196-F196 -> 832 | H196: 98740 | I196: 679 | J196: 1511 | K196: 0.0825
A197: 2011-12-01 | B197: 16608 | C197: 6500 | D197: 1383 | E197: 0 | F197: 541 | G197: 842 | H197: 99572 | I197: =ROUND(H197*K197/12,0) -> 685 | J197: =G197+I197 -> 1527 | K197: 0.0825
A198: 2012-01-01 | B198: 16233 | C198: 6500 | D198: 1352 | E198: 0 | F198: 541 | G198: 811 | H198: =H197+G197 -> 100414 | I198: 690 | J198: 1501 | K198: 0.0825
A199: 2012-02-01 | B199: 16483 | C199: 6500 | D199: 1373 | E199: 0 | F199: 541 | G199: 832 | H199: 101225 | I199: 696 | J199: 1528 | K199: 0.0825
A200: 2012-03-01 | B200: 16375 | C200: 6500 | D200: 1364 | E200: 0 | F200: 541 | G200: 823 | H200: =H199+G199+SUM(I188:I199) -> 110046 | I200: 779 | J200: 1602 | K200: 0.085
A201: 2012-04-01 | B201: 23583 | C201: 6500 | D201: 1964 | E201: 0 | F201: 541 | G201: 1423 | H201: 110869 | I201: 785 | J201: 2208 | K201: 0.085
... 132 more rows

Sheet Upload
A1: Member ID | B1: Wage Month | C1: Wages on which PF contribution was paid | D1: Pension Contribution from employer @ 8.33% due on such Wages as in column 3 | E1: Pension Contribution from employee @ 1.16% of the difference of wages and 15000, for the wage months on or after Sept 2014 | F1: Pension Contribution Paid by the employer earlier | G1: Pension Contribution to be paid along with interest | H1: Yearly PF Interest rate for PFexempt establishments | I1: Text
A2: PUPUN33333330000000414 | B2: 11/1995 | C2: =Calculation!B4 -> 2111 | D2: =Calculation!D4 -> 176 | E2: =Calculation!E4 -> 0 | F2: =Calculation!F4 -> 176 | G2: =Calculation!J4 -> 0 | H2: 12.00 | I2: =CONCATENATE(A2,"#~#",B2,"#~#",C2,"#~#",D2,"#~#",E2,"#~#",F2,"#~#",G2,"#~#",H2) -> PUPUN33333330000000414#~#11/1995#~#2111#~#176#~#0#~#176#~#0#~#12.00
A3: PUPUN33333330000000414 | B3: 12/1995 | C3: =Calculation!B5 -> 4271 | D3: =Calculation!D5 -> 356 | E3: =Calculation!E5 -> 0 | F3: =Calculation!F5 -> 356 | G3: =Calculation!J5 -> 0 | H3: 12.00 | I3: PUPUN33333330000000414#~#12/1995#~#4271#~#356#~#0#~#356#~#0#~#12.00
A4: PUPUN33333330000000414 | B4: 01/1996 | C4: =Calculation!B6 -> 4373 | D4: =Calculation!D6 -> 364 | E4: =Calculation!E6 -> 0 | F4: =Calculation!F6 -> 364 | G4: =Calculation!J6 -> 0 | H4: 12.00 | I4: PUPUN33333330000000414#~#01/1996#~#4373#~#364#~#0#~#364#~#0#~#12.00
A5: PUPUN33333330000000414 | B5: 02/1996 | C5: =Calculation!B7 -> 4012 | D5: =Calculation!D7 -> 334 | E5: =Calculation!E7 -> 0 | F5: =Calculation!F7 -> 334 | G5: =Calculation!J7 -> 0 | H5: 12.00 | I5: PUPUN33333330000000414#~#02/1996#~#4012#~#334#~#0#~#334#~#0#~#12.00
A6: PUPUN33333330000000414 | B6: 03/1996 | C6: =Calculation!B8 -> 4280 | D6: =Calculation!D8 -> 357 | E6: =Calculation!E8 -> 0 | F6: =Calculation!F8 -> 357 | G6: =Calculation!J8 -> 0 | H6: 12.00 | I6: PUPUN33333330000000414#~#03/1996#~#4280#~#357#~#0#~#357#~#0#~#12.00
A7: PUPUN33333330000000414 | B7: 04/1996 | C7: =Calculation!B9 -> 4229 | D7: =Calculation!D9 -> 352 | E7: =Calculation!E9 -> 0 | F7: =Calculation!F9 -> 352 | G7: =Calculation!J9 -> 0 | H7: 12.00 | I7: PUPUN33333330000000414#~#04/1996#~#4229#~#352#~#0#~#352#~#0#~#12.00
A8: PUPUN33333330000000414 | B8: 05/1996 | C8: =Calculation!B10 -> 4423 | D8: =Calculation!D10 -> 368 | E8: =Calculation!E10 -> 0 | F8: =Calculation!F10 -> 368 | G8: =Calculation!J10 -> 0 | H8: 12.00 | I8: PUPUN33333330000000414#~#05/1996#~#4423#~#368#~#0#~#368#~#0#~#12.00
A9: PUPUN33333330000000414 | B9: 06/1996 | C9: =Calculation!B11 -> 4384 | D9: =Calculation!D11 -> 365 | E9: =Calculation!E11 -> 0 | F9: =Calculation!F11 -> 365 | G9: =Calculation!J11 -> 0 | H9: 12.00 | I9: PUPUN33333330000000414#~#06/1996#~#4384#~#365#~#0#~#365#~#0#~#12.00
A10: PUPUN33333330000000414 | B10: 07/1996 | C10: =Calculation!B12 -> 4536 | D10: =Calculation!D12 -> 378 | E10: =Calculation!E12 -> 0 | F10: =Calculation!F12 -> 378 | G10: =Calculation!J12 -> 0 | H10: 12.00 | I10: PUPUN33333330000000414#~#07/1996#~#4536#~#378#~#0#~#378#~#0#~#12.00
A11: PUPUN33333330000000414 | B11: 08/1996 | C11: =Calculation!B13 -> 4566 | D11: =Calculation!D13 -> 380 | E11: =Calculation!E13 -> 0 | F11: =Calculation!F13 -> 380 | G11: =Calculation!J13 -> 0 | H11: 12.00 | I11: PUPUN33333330000000414#~#08/1996#~#4566#~#380#~#0#~#380#~#0#~#12.00
A12: PUPUN33333330000000414 | B12: 09/1996 | C12: =Calculation!B14 -> 4378 | D12: =Calculation!D14 -> 365 | E12: =Calculation!E14 -> 0 | F12: =Calculation!F14 -> 365 | G12: =Calculation!J14 -> 0 | H12: 12.00 | I12: PUPUN33333330000000414#~#09/1996#~#4378#~#365#~#0#~#365#~#0#~#12.00
A13: PUPUN33333330000000414 | B13: 10/1996 | C13: =Calculation!B15 -> 4543 | D13: =Calculation!D15 -> 378 | E13: =Calculation!E15 -> 0 | F13: =Calculation!F15 -> 378 | G13: =Calculation!J15 -> 0 | H13: 12.00 | I13: PUPUN33333330000000414#~#10/1996#~#4543#~#378#~#0#~#378#~#0#~#12.00
A14: PUPUN33333330000000414 | B14: 11/1996 | C14: =Calculation!B16 -> 4474 | D14: =Calculation!D16 -> 373 | E14: =Calculation!E16 -> 0 | F14: =Calculation!F16 -> 373 | G14: =Calculation!J16 -> 0 | H14: 12.00 | I14: PUPUN33333330000000414#~#11/1996#~#4474#~#373#~#0#~#373#~#0#~#12.00
A15: PUPUN33333330000000414 | B15: 12/1996 | C15: =Calculation!B17 -> 4597 | D15: =Calculation!D17 -> 383 | E15: =Calculation!E17 -> 0 | F15: =Calculation!F17 -> 383 | G15: =Calculation!J17 -> 0 | H15: 12.00 | I15: PUPUN33333330000000414#~#12/1996#~#4597#~#383#~#0#~#383#~#0#~#12.00
A16: PUPUN33333330000000414 | B16: 01/1997 | C16: =Calculation!B18 -> 4633 | D16: =Calculation!D18 -> 386 | E16: =Calculation!E18 -> 0 | F16: =Calculation!F18 -> 386 | G16: =Calculation!J18 -> 0 | H16: 12.00 | I16: PUPUN33333330000000414#~#01/1997#~#4633#~#386#~#0#~#386#~#0#~#12.00
A17: PUPUN33333330000000414 | B17: 02/1997 | C17: =Calculation!B19 -> 4371 | D17: =Calculation!D19 -> 364 | E17: =Calculation!E19 -> 0 | F17: =Calculation!F19 -> 364 | G17: =Calculation!J19 -> 0 | H17: 12.00 | I17: PUPUN33333330000000414#~#02/1997#~#4371#~#364#~#0#~#364#~#0#~#12.00
A18: PUPUN33333330000000414 | B18: 03/1997 | C18: =Calculation!B20 -> 4683 | D18: =Calculation!D20 -> 390 | E18: =Calculation!E20 -> 0 | F18: =Calculation!F20 -> 390 | G18: =Calculation!J20 -> 0 | H18: 12.00 | I18: PUPUN33333330000000414#~#03/1997#~#4683#~#390#~#0#~#390#~#0#~#12.00
A19: PUPUN33333330000000414 | B19: 04/1997 | C19: =Calculation!B21 -> 4642 | D19: =Calculation!D21 -> 387 | E19: =Calculation!E21 -> 0 | F19: =Calculation!F21 -> 387 | G19: =Calculation!J21 -> 0 | H19: 12.00 | I19: PUPUN33333330000000414#~#04/1997#~#4642#~#387#~#0#~#387#~#0#~#12.00
A20: PUPUN33333330000000414 | B20: 05/1997 | C20: =Calculation!B22 -> 4715 | D20: =Calculation!D22 -> 393 | E20: =Calculation!E22 -> 0 | F20: =Calculation!F22 -> 393 | G20: =Calculation!J22 -> 0 | H20: 12.00 | I20: PUPUN33333330000000414#~#05/1997#~#4715#~#393#~#0#~#393#~#0#~#12.00
A21: PUPUN33333330000000414 | B21: 06/1997 | C21: =Calculation!B23 -> 14153 | D21: =Calculation!D23 -> 1179 | E21: =Calculation!E23 -> 0 | F21: =Calculation!F23 -> 417 | G21: =Calculation!J23 -> 762 | H21: 12.00 | I21: PUPUN33333330000000414#~#06/1997#~#14153#~#1179#~#0#~#417#~#762#~#12.00
A22: PUPUN33333330000000414 | B22: 07/1997 | C22: =Calculation!B24 -> 5533 | D22: =Calculation!D24 -> 461 | E22: =Calculation!E24 -> 0 | F22: =Calculation!F24 -> 417 | G22: =Calculation!J24 -> 52 | H22: 12.00 | I22: PUPUN33333330000000414#~#07/1997#~#5533#~#461#~#0#~#417#~#52#~#12.00
A23: PUPUN33333330000000414 | B23: 08/1997 | C23: =Calculation!B25 -> 5743 | D23: =Calculation!D25 -> 478 | E23: =Calculation!E25 -> 0 | F23: =Calculation!F25 -> 417 | G23: =Calculation!J25 -> 69 | H23: 12.00 | I23: PUPUN33333330000000414#~#08/1997#~#5743#~#478#~#0#~#417#~#69#~#12.00
A24: PUPUN33333330000000414 | B24: 09/1997 | C24: =Calculation!B26 -> 5727 | D24: =Calculation!D26 -> 477 | E24: =Calculation!E26 -> 0 | F24: =Calculation!F26 -> 417 | G24: =Calculation!J26 -> 69 | H24: 12.00 | I24: PUPUN33333330000000414#~#09/1997#~#5727#~#477#~#0#~#417#~#69#~#12.00
A25: PUPUN33333330000000414 | B25: 10/1997 | C25: =Calculation!B27 -> 5743 | D25: =Calculation!D27 -> 478 | E25: =Calculation!E27 -> 0 | F25: =Calculation!F27 -> 417 | G25: =Calculation!J27 -> 70 | H25: 12.00 | I25: PUPUN33333330000000414#~#10/1997#~#5743#~#478#~#0#~#417#~#70#~#12.00
A26: PUPUN33333330000000414 | B26: 11/1997 | C26: =Calculation!B28 -> 5811 | D26: =Calculation!D28 -> 484 | E26: =Calculation!E28 -> 0 | F26: =Calculation!F28 -> 417 | G26: =Calculation!J28 -> 77 | H26: 12.00 | I26: PUPUN33333330000000414#~#11/1997#~#5811#~#484#~#0#~#417#~#77#~#12.00
A27: PUPUN33333330000000414 | B27: 12/1997 | C27: =Calculation!B29 -> 5908 | D27: =Calculation!D29 -> 492 | E27: =Calculation!E29 -> 0 | F27: =Calculation!F29 -> 417 | G27: =Calculation!J29 -> 86 | H27: 12.00 | I27: PUPUN33333330000000414#~#12/1997#~#5908#~#492#~#0#~#417#~#86#~#12.00
A28: PUPUN33333330000000414 | B28: 01/1998 | C28: =Calculation!B30 -> 5875 | D28: =Calculation!D30 -> 489 | E28: =Calculation!E30 -> 0 | F28: =Calculation!F30 -> 417 | G28: =Calculation!J30 -> 83 | H28: 12.00 | I28: PUPUN33333330000000414#~#01/1998#~#5875#~#489#~#0#~#417#~#83#~#12.00
A29: PUPUN33333330000000414 | B29: 02/1998 | C29: =Calculation!B31 -> 6071 | D29: =Calculation!D31 -> 506 | E29: =Calculation!E31 -> 0 | F29: =Calculation!F31 -> 417 | G29: =Calculation!J31 -> 101 | H29: 12.00 | I29: PUPUN33333330000000414#~#02/1998#~#6071#~#506#~#0#~#417#~#101#~#12.00
A30: PUPUN33333330000000414 | B30: 03/1998 | C30: =Calculation!B32 -> 6167 | D30: =Calculation!D32 -> 514 | E30: =Calculation!E32 -> 0 | F30: =Calculation!F32 -> 417 | G30: =Calculation!J32 -> 111 | H30: 12.00 | I30: PUPUN33333330000000414#~#03/1998#~#6167#~#514#~#0#~#417#~#111#~#12.00
A31: PUPUN33333330000000414 | B31: 04/1998 | C31: =Calculation!B33 -> 6294 | D31: =Calculation!D33 -> 524 | E31: =Calculation!E33 -> 0 | F31: =Calculation!F33 -> 417 | G31: =Calculation!J33 -> 122 | H31: 12.00 | I31: PUPUN33333330000000414#~#04/1998#~#6294#~#524#~#0#~#417#~#122#~#12.00
A32: PUPUN33333330000000414 | B32: 05/1998 | C32: =Calculation!B34 -> 6283 | D32: =Calculation!D34 -> 523 | E32: =Calculation!E34 -> 0 | F32: =Calculation!F34 -> 417 | G32: =Calculation!J34 -> 122 | H32: 12.00 | I32: PUPUN33333330000000414#~#05/1998#~#6283#~#523#~#0#~#417#~#122#~#12.00
A33: PUPUN33333330000000414 | B33: 06/1998 | C33: =Calculation!B35 -> 6391 | D33: =Calculation!D35 -> 532 | E33: =Calculation!E35 -> 0 | F33: =Calculation!F35 -> 417 | G33: =Calculation!J35 -> 132 | H33: 12.00 | I33: PUPUN33333330000000414#~#06/1998#~#6391#~#532#~#0#~#417#~#132#~#12.00
A34: PUPUN33333330000000414 | B34: 07/1998 | C34: =Calculation!B36 -> 6547 | D34: =Calculation!D36 -> 545 | E34: =Calculation!E36 -> 0 | F34: =Calculation!F36 -> 417 | G34: =Calculation!J36 -> 146 | H34: 12.00 | I34: PUPUN33333330000000414#~#07/1998#~#6547#~#545#~#0#~#417#~#146#~#12.00
A35: PUPUN33333330000000414 | B35: 08/1998 | C35: =Calculation!B37 -> 6650 | D35: =Calculation!D37 -> 554 | E35: =Calculation!E37 -> 0 | F35: =Calculation!F37 -> 417 | G35: =Calculation!J37 -> 156 | H35: 12.00 | I35: PUPUN33333330000000414#~#08/1998#~#6650#~#554#~#0#~#417#~#156#~#12.00
A36: PUPUN33333330000000414 | B36: 09/1998 | C36: =Calculation!B38 -> 6830 | D36: =Calculation!D38 -> 569 | E36: =Calculation!E38 -> 0 | F36: =Calculation!F38 -> 417 | G36: =Calculation!J38 -> 173 | H36: 12.00 | I36: PUPUN33333330000000414#~#09/1998#~#6830#~#569#~#0#~#417#~#173#~#12.00
A37: PUPUN33333330000000414 | B37: 10/1998 | C37: =Calculation!B39 -> 6811 | D37: =Calculation!D39 -> 567 | E37: =Calculation!E39 -> 0 | F37: =Calculation!F39 -> 417 | G37: =Calculation!J39 -> 172 | H37: 12.00 | I37: PUPUN33333330000000414#~#10/1998#~#6811#~#567#~#0#~#417#~#172#~#12.00
A38: PUPUN33333330000000414 | B38: 11/1998 | C38: =Calculation!B40 -> 6243 | D38: =Calculation!D40 -> 520 | E38: =Calculation!E40 -> 0 | F38: =Calculation!F40 -> 417 | G38: =Calculation!J40 -> 127 | H38: 12.00 | I38: PUPUN33333330000000414#~#11/1998#~#6243#~#520#~#0#~#417#~#127#~#12.00
A39: PUPUN33333330000000414 | B39: 12/1998 | C39: =Calculation!B41 -> 7058 | D39: =Calculation!D41 -> 588 | E39: =Calculation!E41 -> 0 | F39: =Calculation!F41 -> 417 | G39: =Calculation!J41 -> 196 | H39: 12.00 | I39: PUPUN33333330000000414#~#12/1998#~#7058#~#588#~#0#~#417#~#196#~#12.00
A40: PUPUN33333330000000414 | B40: 01/1999 | C40: =Calculation!B42 -> 6931 | D40: =Calculation!D42 -> 577 | E40: =Calculation!E42 -> 0 | F40: =Calculation!F42 -> 417 | G40: =Calculation!J42 -> 186 | H40: 12.00 | I40: PUPUN33333330000000414#~#01/1999#~#6931#~#577#~#0#~#417#~#186#~#12.00
A41: PUPUN33333330000000414 | B41: 02/1999 | C41: =Calculation!B43 -> 7320 | D41: =Calculation!D43 -> 610 | E41: =Calculation!E43 -> 0 | F41: =Calculation!F43 -> 417 | G41: =Calculation!J43 -> 221 | H41: 12.00 | I41: PUPUN33333330000000414#~#02/1999#~#7320#~#610#~#0#~#417#~#221#~#12.00
A42: PUPUN33333330000000414 | B42: 03/1999 | C42: =Calculation!B44 -> 6935 | D42: =Calculation!D44 -> 578 | E42: =Calculation!E44 -> 0 | F42: =Calculation!F44 -> 417 | G42: =Calculation!J44 -> 193 | H42: 12.00 | I42: PUPUN33333330000000414#~#03/1999#~#6935#~#578#~#0#~#417#~#193#~#12.00
A43: PUPUN33333330000000414 | B43: 04/1999 | C43: =Calculation!B45 -> 6865 | D43: =Calculation!D45 -> 572 | E43: =Calculation!E45 -> 0 | F43: =Calculation!F45 -> 417 | G43: =Calculation!J45 -> 189 | H43: 12.00 | I43: PUPUN33333330000000414#~#04/1999#~#6865#~#572#~#0#~#417#~#189#~#12.00
A44: PUPUN33333330000000414 | B44: 05/1999 | C44: =Calculation!B46 -> 6950 | D44: =Calculation!D46 -> 579 | E44: =Calculation!E46 -> 0 | F44: =Calculation!F46 -> 417 | G44: =Calculation!J46 -> 197 | H44: 12.00 | I44: PUPUN33333330000000414#~#05/1999#~#6950#~#579#~#0#~#417#~#197#~#12.00
A45: PUPUN33333330000000414 | B45: 06/1999 | C45: =Calculation!B47 -> 7001 | D45: =Calculation!D47 -> 583 | E45: =Calculation!E47 -> 0 | F45: =Calculation!F47 -> 417 | G45: =Calculation!J47 -> 203 | H45: 12.00 | I45: PUPUN33333330000000414#~#06/1999#~#7001#~#583#~#0#~#417#~#203#~#12.00
A46: PUPUN33333330000000414 | B46: 07/1999 | C46: =Calculation!B48 -> 7115 | D46: =Calculation!D48 -> 593 | E46: =Calculation!E48 -> 0 | F46: =Calculation!F48 -> 417 | G46: =Calculation!J48 -> 215 | H46: 12.00 | I46: PUPUN33333330000000414#~#07/1999#~#7115#~#593#~#0#~#417#~#215#~#12.00
A47: PUPUN33333330000000414 | B47: 08/1999 | C47: =Calculation!B49 -> 7076 | D47: =Calculation!D49 -> 589 | E47: =Calculation!E49 -> 0 | F47: =Calculation!F49 -> 417 | G47: =Calculation!J49 -> 213 | H47: 12.00 | I47: PUPUN33333330000000414#~#08/1999#~#7076#~#589#~#0#~#417#~#213#~#12.00
A48: PUPUN33333330000000414 | B48: 09/1999 | C48: =Calculation!B50 -> 7120 | D48: =Calculation!D50 -> 593 | E48: =Calculation!E50 -> 0 | F48: =Calculation!F50 -> 417 | G48: =Calculation!J50 -> 218 | H48: 12.00 | I48: PUPUN33333330000000414#~#09/1999#~#7120#~#593#~#0#~#417#~#218#~#12.00
A49: PUPUN33333330000000414 | B49: 10/1999 | C49: =Calculation!B51 -> 7131 | D49: =Calculation!D51 -> 594 | E49: =Calculation!E51 -> 0 | F49: =Calculation!F51 -> 417 | G49: =Calculation!J51 -> 221 | H49: 12.00 | I49: PUPUN33333330000000414#~#10/1999#~#7131#~#594#~#0#~#417#~#221#~#12.00
A50: PUPUN33333330000000414 | B50: 11/1999 | C50: =Calculation!B52 -> 7136 | D50: =Calculation!D52 -> 594 | E50: =Calculation!E52 -> 0 | F50: =Calculation!F52 -> 417 | G50: =Calculation!J52 -> 223 | H50: 12.00 | I50: PUPUN33333330000000414#~#11/1999#~#7136#~#594#~#0#~#417#~#223#~#12.00
A51: PUPUN33333330000000414 | B51: 12/1999 | C51: =Calculation!B53 -> 7153 | D51: =Calculation!D53 -> 596 | E51: =Calculation!E53 -> 0 | F51: =Calculation!F53 -> 417 | G51: =Calculation!J53 -> 227 | H51: 12.00 | I51: PUPUN33333330000000414#~#12/1999#~#7153#~#596#~#0#~#417#~#227#~#12.00
A52: PUPUN33333330000000414 | B52: 01/2000 | C52: =Calculation!B54 -> 7081 | D52: =Calculation!D54 -> 590 | E52: =Calculation!E54 -> 0 | F52: =Calculation!F54 -> 417 | G52: =Calculation!J54 -> 222 | H52: 12.00 | I52: PUPUN33333330000000414#~#01/2000#~#7081#~#590#~#0#~#417#~#222#~#12.00
A53: PUPUN33333330000000414 | B53: 02/2000 | C53: =Calculation!B55 -> 7076 | D53: =Calculation!D55 -> 589 | E53: =Calculation!E55 -> 0 | F53: =Calculation!F55 -> 417 | G53: =Calculation!J55 -> 223 | H53: 12.00 | I53: PUPUN33333330000000414#~#02/2000#~#7076#~#589#~#0#~#417#~#223#~#12.00
A54: PUPUN33333330000000414 | B54: 03/2000 | C54: =Calculation!B56 -> 7367 | D54: =Calculation!D56 -> 614 | E54: =Calculation!E56 -> 0 | F54: =Calculation!F56 -> 417 | G54: =Calculation!J56 -> 255 | H54: 11.00 | I54: PUPUN33333330000000414#~#03/2000#~#7367#~#614#~#0#~#417#~#255#~#11.00
A55: PUPUN33333330000000414 | B55: 04/2000 | C55: =Calculation!B57 -> 7450 | D55: =Calculation!D57 -> 621 | E55: =Calculation!E57 -> 0 | F55: =Calculation!F57 -> 417 | G55: =Calculation!J57 -> 264 | H55: 11.00 | I55: PUPUN33333330000000414#~#04/2000#~#7450#~#621#~#0#~#417#~#264#~#11.00
A56: PUPUN33333330000000414 | B56: 05/2000 | C56: =Calculation!B58 -> 7583 | D56: =Calculation!D58 -> 632 | E56: =Calculation!E58 -> 0 | F56: =Calculation!F58 -> 417 | G56: =Calculation!J58 -> 277 | H56: 11.00 | I56: PUPUN33333330000000414#~#05/2000#~#7583#~#632#~#0#~#417#~#277#~#11.00
A57: PUPUN33333330000000414 | B57: 06/2000 | C57: =Calculation!B59 -> 7800 | D57: =Calculation!D59 -> 650 | E57: =Calculation!E59 -> 0 | F57: =Calculation!F59 -> 417 | G57: =Calculation!J59 -> 292 | H57: 11.00 | I57: PUPUN33333330000000414#~#06/2000#~#7800#~#650#~#0#~#417#~#292#~#11.00
A58: PUPUN33333330000000414 | B58: 07/2000 | C58: =Calculation!B60 -> 7967 | D58: =Calculation!D60 -> 664 | E58: =Calculation!E60 -> 0 | F58: =Calculation!F60 -> 417 | G58: =Calculation!J60 -> 308 | H58: 11.00 | I58: PUPUN33333330000000414#~#07/2000#~#7967#~#664#~#0#~#417#~#308#~#11.00
A59: PUPUN33333330000000414 | B59: 08/2000 | C59: =Calculation!B61 -> 8000 | D59: =Calculation!D61 -> 666 | E59: =Calculation!E61 -> 0 | F59: =Calculation!F61 -> 417 | G59: =Calculation!J61 -> 312 | H59: 11.00 | I59: PUPUN33333330000000414#~#08/2000#~#8000#~#666#~#0#~#417#~#312#~#11.00
A60: PUPUN33333330000000414 | B60: 09/2000 | C60: =Calculation!B62 -> 7975 | D60: =Calculation!D62 -> 664 | E60: =Calculation!E62 -> 0 | F60: =Calculation!F62 -> 417 | G60: =Calculation!J62 -> 312 | H60: 11.00 | I60: PUPUN33333330000000414#~#09/2000#~#7975#~#664#~#0#~#417#~#312#~#11.00
A61: PUPUN33333330000000414 | B61: 10/2000 | C61: =Calculation!B63 -> 7783 | D61: =Calculation!D63 -> 648 | E61: =Calculation!E63 -> 0 | F61: =Calculation!F63 -> 417 | G61: =Calculation!J63 -> 299 | H61: 11.00 | I61: PUPUN33333330000000414#~#10/2000#~#7783#~#648#~#0#~#417#~#299#~#11.00
A62: PUPUN33333330000000414 | B62: 11/2000 | C62: =Calculation!B64 -> 7900 | D62: =Calculation!D64 -> 658 | E62: =Calculation!E64 -> 0 | F62: =Calculation!F64 -> 417 | G62: =Calculation!J64 -> 311 | H62: 11.00 | I62: PUPUN33333330000000414#~#11/2000#~#7900#~#658#~#0#~#417#~#311#~#11.00
A63: PUPUN33333330000000414 | B63: 12/2000 | C63: =Calculation!B65 -> 8017 | D63: =Calculation!D65 -> 668 | E63: =Calculation!E65 -> 0 | F63: =Calculation!F65 -> 417 | G63: =Calculation!J65 -> 323 | H63: 11.00 | I63: PUPUN33333330000000414#~#12/2000#~#8017#~#668#~#0#~#417#~#323#~#11.00
A64: PUPUN33333330000000414 | B64: 01/2001 | C64: =Calculation!B66 -> 8067 | D64: =Calculation!D66 -> 672 | E64: =Calculation!E66 -> 0 | F64: =Calculation!F66 -> 417 | G64: =Calculation!J66 -> 329 | H64: 11.00 | I64: PUPUN33333330000000414#~#01/2001#~#8067#~#672#~#0#~#417#~#329#~#11.00
A65: PUPUN33333330000000414 | B65: 02/2001 | C65: =Calculation!B67 -> 7983 | D65: =Calculation!D67 -> 665 | E65: =Calculation!E67 -> 0 | F65: =Calculation!F67 -> 417 | G65: =Calculation!J67 -> 325 | H65: 11.00 | I65: PUPUN33333330000000414#~#02/2001#~#7983#~#665#~#0#~#417#~#325#~#11.00
A66: PUPUN33333330000000414 | B66: 03/2001 | C66: =Calculation!B68 -> 8083 | D66: =Calculation!D68 -> 673 | E66: =Calculation!E68 -> 0 | F66: =Calculation!F68 -> 417 | G66: =Calculation!J68 -> 330 | H66: 9.50 | I66: =CONCATENATE(A66,"#~#",B66,"#~#",C66,"#~#",D66,"#~#",E66,"#~#",F66,"#~#",G66,"#~#",H66) -> PUPUN33333330000000414#~#03/2001#~#8083#~#673#~#0#~#417#~#330#~#9.50
A67: PUPUN33333330000000414 | B67: 04/2001 | C67: =Calculation!B69 -> 8008 | D67: =Calculation!D69 -> 667 | E67: =Calculation!E69 -> 0 | F67: =Calculation!F69 -> 417 | G67: =Calculation!J69 -> 326 | H67: 9.50 | I67: PUPUN33333330000000414#~#04/2001#~#8008#~#667#~#0#~#417#~#326#~#9.50
A68: PUPUN33333330000000414 | B68: 05/2001 | C68: =Calculation!B70 -> 7808 | D68: =Calculation!D70 -> 650 | E68: =Calculation!E70 -> 0 | F68: =Calculation!F70 -> 417 | G68: =Calculation!J70 -> 311 | H68: 9.50 | I68: PUPUN33333330000000414#~#05/2001#~#7808#~#650#~#0#~#417#~#311#~#9.50
A69: PUPUN33333330000000414 | B69: 06/2001 | C69: =Calculation!B71 -> 8283 | D69: =Calculation!D71 -> 690 | E69: =Calculation!E71 -> 0 | F69: =Calculation!F71 -> 541 | G69: =Calculation!J71 -> 229 | H69: 9.50 | I69: PUPUN33333330000000414#~#06/2001#~#8283#~#690#~#0#~#541#~#229#~#9.50
A70: PUPUN33333330000000414 | B70: 07/2001 | C70: =Calculation!B72 -> 8275 | D70: =Calculation!D72 -> 689 | E70: =Calculation!E72 -> 0 | F70: =Calculation!F72 -> 541 | G70: =Calculation!J72 -> 229 | H70: 9.50 | I70: PUPUN33333330000000414#~#07/2001#~#8275#~#689#~#0#~#541#~#229#~#9.50
A71: PUPUN33333330000000414 | B71: 08/2001 | C71: =Calculation!B73 -> 8375 | D71: =Calculation!D73 -> 698 | E71: =Calculation!E73 -> 0 | F71: =Calculation!F73 -> 541 | G71: =Calculation!J73 -> 239 | H71: 9.50 | I71: PUPUN33333330000000414#~#08/2001#~#8375#~#698#~#0#~#541#~#239#~#9.50
A72: PUPUN33333330000000414 | B72: 09/2001 | C72: =Calculation!B74 -> 8242 | D72: =Calculation!D74 -> 687 | E72: =Calculation!E74 -> 0 | F72: =Calculation!F74 -> 541 | G72: =Calculation!J74 -> 230 | H72: 9.50 | I72: PUPUN33333330000000414#~#09/2001#~#8242#~#687#~#0#~#541#~#230#~#9.50
A73: PUPUN33333330000000414 | B73: 10/2001 | C73: =Calculation!B75 -> 8517 | D73: =Calculation!D75 -> 709 | E73: =Calculation!E75 -> 0 | F73: =Calculation!F75 -> 541 | G73: =Calculation!J75 -> 253 | H73: 9.50 | I73: PUPUN33333330000000414#~#10/2001#~#8517#~#709#~#0#~#541#~#253#~#9.50
A74: PUPUN33333330000000414 | B74: 11/2001 | C74: =Calculation!B76 -> 8500 | D74: =Calculation!D76 -> 708 | E74: =Calculation!E76 -> 0 | F74: =Calculation!F76 -> 541 | G74: =Calculation!J76 -> 253 | H74: 9.50 | I74: PUPUN33333330000000414#~#11/2001#~#8500#~#708#~#0#~#541#~#253#~#9.50
A75: PUPUN33333330000000414 | B75: 12/2001 | C75: =Calculation!B77 -> 7983 | D75: =Calculation!D77 -> 665 | E75: =Calculation!E77 -> 0 | F75: =Calculation!F77 -> 541 | G75: =Calculation!J77 -> 212 | H75: 9.50 | I75: PUPUN33333330000000414#~#12/2001#~#7983#~#665#~#0#~#541#~#212#~#9.50
A76: PUPUN33333330000000414 | B76: 01/2002 | C76: =Calculation!B78 -> 8608 | D76: =Calculation!D78 -> 717 | E76: =Calculation!E78 -> 0 | F76: =Calculation!F78 -> 541 | G76: =Calculation!J78 -> 265 | H76: 9.50 | I76: PUPUN33333330000000414#~#01/2002#~#8608#~#717#~#0#~#541#~#265#~#9.50
A77: PUPUN33333330000000414 | B77: 02/2002 | C77: =Calculation!B79 -> 8550 | D77: =Calculation!D79 -> 712 | E77: =Calculation!E79 -> 0 | F77: =Calculation!F79 -> 541 | G77: =Calculation!J79 -> 261 | H77: 9.50 | I77: PUPUN33333330000000414#~#02/2002#~#8550#~#712#~#0#~#541#~#261#~#9.50
A78: PUPUN33333330000000414 | B78: 03/2002 | C78: =Calculation!B80 -> 8675 | D78: =Calculation!D80 -> 723 | E78: =Calculation!E80 -> 0 | F78: =Calculation!F80 -> 541 | G78: =Calculation!J80 -> 281 | H78: 9.50 | I78: PUPUN33333330000000414#~#03/2002#~#8675#~#723#~#0#~#541#~#281#~#9.50
A79: PUPUN33333330000000414 | B79: 04/2002 | C79: =Calculation!B81 -> 8817 | D79: =Calculation!D81 -> 734 | E79: =Calculation!E81 -> 0 | F79: =Calculation!F81 -> 541 | G79: =Calculation!J81 -> 294 | H79: 9.50 | I79: PUPUN33333330000000414#~#04/2002#~#8817#~#734#~#0#~#541#~#294#~#9.50
A80: PUPUN33333330000000414 | B80: 05/2002 | C80: =Calculation!B82 -> 8992 | D80: =Calculation!D82 -> 749 | E80: =Calculation!E82 -> 0 | F80: =Calculation!F82 -> 541 | G80: =Calculation!J82 -> 310 | H80: 9.50 | I80: PUPUN33333330000000414#~#05/2002#~#8992#~#749#~#0#~#541#~#310#~#9.50
A81: PUPUN33333330000000414 | B81: 06/2002 | C81: =Calculation!B83 -> 9017 | D81: =Calculation!D83 -> 751 | E81: =Calculation!E83 -> 0 | F81: =Calculation!F83 -> 541 | G81: =Calculation!J83 -> 314 | H81: 9.50 | I81: PUPUN33333330000000414#~#06/2002#~#9017#~#751#~#0#~#541#~#314#~#9.50
A82: PUPUN33333330000000414 | B82: 07/2002 | C82: =Calculation!B84 -> 9033 | D82: =Calculation!D84 -> 752 | E82: =Calculation!E84 -> 0 | F82: =Calculation!F84 -> 541 | G82: =Calculation!J84 -> 316 | H82: 9.50 | I82: PUPUN33333330000000414#~#07/2002#~#9033#~#752#~#0#~#541#~#316#~#9.50
A83: PUPUN33333330000000414 | B83: 08/2002 | C83: =Calculation!B85 -> 9125 | D83: =Calculation!D85 -> 760 | E83: =Calculation!E85 -> 0 | F83: =Calculation!F85 -> 541 | G83: =Calculation!J85 -> 326 | H83: 9.50 | I83: PUPUN33333330000000414#~#08/2002#~#9125#~#760#~#0#~#541#~#326#~#9.50
A84: PUPUN33333330000000414 | B84: 09/2002 | C84: =Calculation!B86 -> 9133 | D84: =Calculation!D86 -> 761 | E84: =Calculation!E86 -> 0 | F84: =Calculation!F86 -> 541 | G84: =Calculation!J86 -> 329 | H84: 9.50 | I84: PUPUN33333330000000414#~#09/2002#~#9133#~#761#~#0#~#541#~#329#~#9.50
A85: PUPUN33333330000000414 | B85: 10/2002 | C85: =Calculation!B87 -> 8858 | D85: =Calculation!D87 -> 738 | E85: =Calculation!E87 -> 0 | F85: =Calculation!F87 -> 541 | G85: =Calculation!J87 -> 308 | H85: 9.50 | I85: PUPUN33333330000000414#~#10/2002#~#8858#~#738#~#0#~#541#~#308#~#9.50
A86: PUPUN33333330000000414 | B86: 11/2002 | C86: =Calculation!B88 -> 9200 | D86: =Calculation!D88 -> 766 | E86: =Calculation!E88 -> 0 | F86: =Calculation!F88 -> 541 | G86: =Calculation!J88 -> 337 | H86: 9.50 | I86: PUPUN33333330000000414#~#11/2002#~#9200#~#766#~#0#~#541#~#337#~#9.50
A87: PUPUN33333330000000414 | B87: 12/2002 | C87: =Calculation!B89 -> 9200 | D87: =Calculation!D89 -> 766 | E87: =Calculation!E89 -> 0 | F87: =Calculation!F89 -> 541 | G87: =Calculation!J89 -> 339 | H87: 9.50 | I87: PUPUN33333330000000414#~#12/2002#~#9200#~#766#~#0#~#541#~#339#~#9.50
A88: PUPUN33333330000000414 | B88: 01/2003 | C88: =Calculation!B90 -> 9242 | D88: =Calculation!D90 -> 770 | E88: =Calculation!E90 -> 0 | F88: =Calculation!F90 -> 541 | G88: =Calculation!J90 -> 345 | H88: 9.50 | I88: PUPUN33333330000000414#~#01/2003#~#9242#~#770#~#0#~#541#~#345#~#9.50
A89: PUPUN33333330000000414 | B89: 02/2003 | C89: =Calculation!B91 -> 9317 | D89: =Calculation!D91 -> 776 | E89: =Calculation!E91 -> 0 | F89: =Calculation!F91 -> 541 | G89: =Calculation!J91 -> 352 | H89: 9.50 | I89: PUPUN33333330000000414#~#02/2003#~#9317#~#776#~#0#~#541#~#352#~#9.50
A90: PUPUN33333330000000414 | B90: 03/2003 | C90: =Calculation!B92 -> 9408 | D90: =Calculation!D92 -> 784 | E90: =Calculation!E92 -> 0 | F90: =Calculation!F92 -> 541 | G90: =Calculation!J92 -> 373 | H90: 9.50 | I90: PUPUN33333330000000414#~#03/2003#~#9408#~#784#~#0#~#541#~#373#~#9.50
A91: PUPUN33333330000000414 | B91: 04/2003 | C91: =Calculation!B93 -> 9408 | D91: =Calculation!D93 -> 784 | E91: =Calculation!E93 -> 0 | F91: =Calculation!F93 -> 541 | G91: =Calculation!J93 -> 375 | H91: 9.50 | I91: PUPUN33333330000000414#~#04/2003#~#9408#~#784#~#0#~#541#~#375#~#9.50
A92: PUPUN33333330000000414 | B92: 05/2003 | C92: =Calculation!B94 -> 9633 | D92: =Calculation!D94 -> 802 | E92: =Calculation!E94 -> 0 | F92: =Calculation!F94 -> 541 | G92: =Calculation!J94 -> 394 | H92: 9.50 | I92: PUPUN33333330000000414#~#05/2003#~#9633#~#802#~#0#~#541#~#394#~#9.50
A93: PUPUN33333330000000414 | B93: 06/2003 | C93: =Calculation!B95 -> 9767 | D93: =Calculation!D95 -> 814 | E93: =Calculation!E95 -> 0 | F93: =Calculation!F95 -> 541 | G93: =Calculation!J95 -> 409 | H93: 9.50 | I93: PUPUN33333330000000414#~#06/2003#~#9767#~#814#~#0#~#541#~#409#~#9.50
A94: PUPUN33333330000000414 | B94: 07/2003 | C94: =Calculation!B96 -> 9783 | D94: =Calculation!D96 -> 815 | E94: =Calculation!E96 -> 0 | F94: =Calculation!F96 -> 541 | G94: =Calculation!J96 -> 412 | H94: 9.50 | I94: PUPUN33333330000000414#~#07/2003#~#9783#~#815#~#0#~#541#~#412#~#9.50
A95: PUPUN33333330000000414 | B95: 08/2003 | C95: =Calculation!B97 -> 9467 | D95: =Calculation!D97 -> 789 | E95: =Calculation!E97 -> 0 | F95: =Calculation!F97 -> 541 | G95: =Calculation!J97 -> 388 | H95: 9.50 | I95: PUPUN33333330000000414#~#08/2003#~#9467#~#789#~#0#~#541#~#388#~#9.50
A96: PUPUN33333330000000414 | B96: 09/2003 | C96: =Calculation!B98 -> 9850 | D96: =Calculation!D98 -> 821 | E96: =Calculation!E98 -> 0 | F96: =Calculation!F98 -> 541 | G96: =Calculation!J98 -> 422 | H96: 9.50 | I96: PUPUN33333330000000414#~#09/2003#~#9850#~#821#~#0#~#541#~#422#~#9.50
A97: PUPUN33333330000000414 | B97: 10/2003 | C97: =Calculation!B99 -> 9733 | D97: =Calculation!D99 -> 811 | E97: =Calculation!E99 -> 0 | F97: =Calculation!F99 -> 541 | G97: =Calculation!J99 -> 414 | H97: 9.50 | I97: PUPUN33333330000000414#~#10/2003#~#9733#~#811#~#0#~#541#~#414#~#9.50
A98: PUPUN33333330000000414 | B98: 11/2003 | C98: =Calculation!B100 -> 9733 | D98: =Calculation!D100 -> 811 | E98: =Calculation!E100 -> 0 | F98: =Calculation!F100 -> 541 | G98: =Calculation!J100 -> 416 | H98: 9.50 | I98: PUPUN33333330000000414#~#11/2003#~#9733#~#811#~#0#~#541#~#416#~#9.50
A99: PUPUN33333330000000414 | B99: 12/2003 | C99: =Calculation!B101 -> 9767 | D99: =Calculation!D101 -> 814 | E99: =Calculation!E101 -> 0 | F99: =Calculation!F101 -> 541 | G99: =Calculation!J101 -> 421 | H99: 9.50 | I99: PUPUN33333330000000414#~#12/2003#~#9767#~#814#~#0#~#541#~#421#~#9.50
A100: PUPUN33333330000000414 | B100: 01/2004 | C100: =Calculation!B102 -> 9800 | D100: =Calculation!D102 -> 816 | E100: =Calculation!E102 -> 0 | F100: =Calculation!F102 -> 541 | G100: =Calculation!J102 -> 425 | H100: 9.50 | I100: PUPUN33333330000000414#~#01/2004#~#9800#~#816#~#0#~#541#~#425#~#9.50
A101: PUPUN33333330000000414 | B101: 02/2004 | C101: =Calculation!B103 -> 9850 | D101: =Calculation!D103 -> 821 | E101: =Calculation!E103 -> 0 | F101: =Calculation!F103 -> 541 | G101: =Calculation!J103 -> 433 | H101: 9.50 | I101: PUPUN33333330000000414#~#02/2004#~#9850#~#821#~#0#~#541#~#433#~#9.50
A102: PUPUN33333330000000414 | B102: 03/2004 | C102: =Calculation!B104 -> 9850 | D102: =Calculation!D104 -> 821 | E102: =Calculation!E104 -> 0 | F102: =Calculation!F104 -> 541 | G102: =Calculation!J104 -> 448 | H102: 9.50 | I102: PUPUN33333330000000414#~#03/2004#~#9850#~#821#~#0#~#541#~#448#~#9.50
A103: PUPUN33333330000000414 | B103: 04/2004 | C103: =Calculation!B105 -> 9933 | D103: =Calculation!D105 -> 827 | E103: =Calculation!E105 -> 0 | F103: =Calculation!F105 -> 541 | G103: =Calculation!J105 -> 456 | H103: 9.50 | I103: PUPUN33333330000000414#~#04/2004#~#9933#~#827#~#0#~#541#~#456#~#9.50
A104: PUPUN33333330000000414 | B104: 05/2004 | C104: =Calculation!B106 -> 10133 | D104: =Calculation!D106 -> 844 | E104: =Calculation!E106 -> 0 | F104: =Calculation!F106 -> 541 | G104: =Calculation!J106 -> 476 | H104: 9.50 | I104: PUPUN33333330000000414#~#05/2004#~#10133#~#844#~#0#~#541#~#476#~#9.50
A105: PUPUN33333330000000414 | B105: 06/2004 | C105: =Calculation!B107 -> 10158 | D105: =Calculation!D107 -> 846 | E105: =Calculation!E107 -> 0 | F105: =Calculation!F107 -> 541 | G105: =Calculation!J107 -> 480 | H105: 9.50 | I105: PUPUN33333330000000414#~#06/2004#~#10158#~#846#~#0#~#541#~#480#~#9.50
A106: PUPUN33333330000000414 | B106: 07/2004 | C106: =Calculation!B108 -> 10183 | D106: =Calculation!D108 -> 848 | E106: =Calculation!E108 -> 0 | F106: =Calculation!F108 -> 541 | G106: =Calculation!J108 -> 485 | H106: 9.50 | I106: PUPUN33333330000000414#~#07/2004#~#10183#~#848#~#0#~#541#~#485#~#9.50
A107: PUPUN33333330000000414 | B107: 08/2004 | C107: =Calculation!B109 -> 10225 | D107: =Calculation!D109 -> 852 | E107: =Calculation!E109 -> 0 | F107: =Calculation!F109 -> 541 | G107: =Calculation!J109 -> 491 | H107: 9.50 | I107: PUPUN33333330000000414#~#08/2004#~#10225#~#852#~#0#~#541#~#491#~#9.50
A108: PUPUN33333330000000414 | B108: 09/2004 | C108: =Calculation!B110 -> 10325 | D108: =Calculation!D110 -> 860 | E108: =Calculation!E110 -> 0 | F108: =Calculation!F110 -> 541 | G108: =Calculation!J110 -> 501 | H108: 9.50 | I108: PUPUN33333330000000414#~#09/2004#~#10325#~#860#~#0#~#541#~#501#~#9.50
A109: PUPUN33333330000000414 | B109: 10/2004 | C109: =Calculation!B111 -> 10367 | D109: =Calculation!D111 -> 864 | E109: =Calculation!E111 -> 0 | F109: =Calculation!F111 -> 541 | G109: =Calculation!J111 -> 508 | H109: 9.50 | I109: PUPUN33333330000000414#~#10/2004#~#10367#~#864#~#0#~#541#~#508#~#9.50
A110: PUPUN33333330000000414 | B110: 11/2004 | C110: =Calculation!B112 -> 10400 | D110: =Calculation!D112 -> 866 | E110: =Calculation!E112 -> 0 | F110: =Calculation!F112 -> 541 | G110: =Calculation!J112 -> 513 | H110: 9.50 | I110: PUPUN33333330000000414#~#11/2004#~#10400#~#866#~#0#~#541#~#513#~#9.50
A111: PUPUN33333330000000414 | B111: 12/2004 | C111: =Calculation!B113 -> 10442 | D111: =Calculation!D113 -> 870 | E111: =Calculation!E113 -> 0 | F111: =Calculation!F113 -> 541 | G111: =Calculation!J113 -> 519 | H111: 9.50 | I111: PUPUN33333330000000414#~#12/2004#~#10442#~#870#~#0#~#541#~#519#~#9.50
A112: PUPUN33333330000000414 | B112: 01/2005 | C112: =Calculation!B114 -> 10425 | D112: =Calculation!D114 -> 868 | E112: =Calculation!E114 -> 0 | F112: =Calculation!F114 -> 541 | G112: =Calculation!J114 -> 520 | H112: 9.50 | I112: PUPUN33333330000000414#~#01/2005#~#10425#~#868#~#0#~#541#~#520#~#9.50
A113: PUPUN33333330000000414 | B113: 02/2005 | C113: =Calculation!B115 -> 10375 | D113: =Calculation!D115 -> 864 | E113: =Calculation!E115 -> 0 | F113: =Calculation!F115 -> 541 | G113: =Calculation!J115 -> 518 | H113: 9.50 | I113: PUPUN33333330000000414#~#02/2005#~#10375#~#864#~#0#~#541#~#518#~#9.50
A114: PUPUN33333330000000414 | B114: 03/2005 | C114: =Calculation!B116 -> 10508 | D114: =Calculation!D116 -> 875 | E114: =Calculation!E116 -> 0 | F114: =Calculation!F116 -> 541 | G114: =Calculation!J116 -> 526 | H114: 8.50 | I114: PUPUN33333330000000414#~#03/2005#~#10508#~#875#~#0#~#541#~#526#~#8.50
A115: PUPUN33333330000000414 | B115: 04/2005 | C115: =Calculation!B117 -> 9942 | D115: =Calculation!D117 -> 828 | E115: =Calculation!E117 -> 0 | F115: =Calculation!F117 -> 541 | G115: =Calculation!J117 -> 482 | H115: 8.50 | I115: PUPUN33333330000000414#~#04/2005#~#9942#~#828#~#0#~#541#~#482#~#8.50
A116: PUPUN33333330000000414 | B116: 05/2005 | C116: =Calculation!B118 -> 10617 | D116: =Calculation!D118 -> 884 | E116: =Calculation!E118 -> 0 | F116: =Calculation!F118 -> 541 | G116: =Calculation!J118 -> 540 | H116: 8.50 | I116: PUPUN33333330000000414#~#05/2005#~#10617#~#884#~#0#~#541#~#540#~#8.50
A117: PUPUN33333330000000414 | B117: 06/2005 | C117: =Calculation!B119 -> 10658 | D117: =Calculation!D119 -> 888 | E117: =Calculation!E119 -> 0 | F117: =Calculation!F119 -> 541 | G117: =Calculation!J119 -> 546 | H117: 8.50 | I117: PUPUN33333330000000414#~#06/2005#~#10658#~#888#~#0#~#541#~#546#~#8.50
A118: PUPUN33333330000000414 | B118: 07/2005 | C118: =Calculation!B120 -> 9958 | D118: =Calculation!D120 -> 830 | E118: =Calculation!E120 -> 0 | F118: =Calculation!F120 -> 541 | G118: =Calculation!J120 -> 491 | H118: 8.50 | I118: PUPUN33333330000000414#~#07/2005#~#9958#~#830#~#0#~#541#~#491#~#8.50
A119: PUPUN33333330000000414 | B119: 08/2005 | C119: =Calculation!B121 -> 10075 | D119: =Calculation!D121 -> 839 | E119: =Calculation!E121 -> 0 | F119: =Calculation!F121 -> 541 | G119: =Calculation!J121 -> 502 | H119: 8.50 | I119: PUPUN33333330000000414#~#08/2005#~#10075#~#839#~#0#~#541#~#502#~#8.50
A120: PUPUN33333330000000414 | B120: 09/2005 | C120: =Calculation!B122 -> 10317 | D120: =Calculation!D122 -> 859 | E120: =Calculation!E122 -> 0 | F120: =Calculation!F122 -> 541 | G120: =Calculation!J122 -> 524 | H120: 8.50 | I120: PUPUN33333330000000414#~#09/2005#~#10317#~#859#~#0#~#541#~#524#~#8.50
A121: PUPUN33333330000000414 | B121: 10/2005 | C121: =Calculation!B123 -> 10433 | D121: =Calculation!D123 -> 869 | E121: =Calculation!E123 -> 0 | F121: =Calculation!F123 -> 541 | G121: =Calculation!J123 -> 536 | H121: 8.50 | I121: PUPUN33333330000000414#~#10/2005#~#10433#~#869#~#0#~#541#~#536#~#8.50
A122: PUPUN33333330000000414 | B122: 11/2005 | C122: =Calculation!B124 -> 10400 | D122: =Calculation!D124 -> 866 | E122: =Calculation!E124 -> 0 | F122: =Calculation!F124 -> 541 | G122: =Calculation!J124 -> 535 | H122: 8.50 | I122: PUPUN33333330000000414#~#11/2005#~#10400#~#866#~#0#~#541#~#535#~#8.50
A123: PUPUN33333330000000414 | B123: 12/2005 | C123: =Calculation!B125 -> 10533 | D123: =Calculation!D125 -> 877 | E123: =Calculation!E125 -> 0 | F123: =Calculation!F125 -> 541 | G123: =Calculation!J125 -> 549 | H123: 8.50 | I123: PUPUN33333330000000414#~#12/2005#~#10533#~#877#~#0#~#541#~#549#~#8.50
A124: PUPUN33333330000000414 | B124: 01/2006 | C124: =Calculation!B126 -> 10617 | D124: =Calculation!D126 -> 884 | E124: =Calculation!E126 -> 0 | F124: =Calculation!F126 -> 541 | G124: =Calculation!J126 -> 558 | H124: 8.50 | I124: PUPUN33333330000000414#~#01/2006#~#10617#~#884#~#0#~#541#~#558#~#8.50
A125: PUPUN33333330000000414 | B125: 02/2006 | C125: =Calculation!B127 -> 10658 | D125: =Calculation!D127 -> 888 | E125: =Calculation!E127 -> 0 | F125: =Calculation!F127 -> 541 | G125: =Calculation!J127 -> 565 | H125: 8.50 | I125: PUPUN33333330000000414#~#02/2006#~#10658#~#888#~#0#~#541#~#565#~#8.50
A126: PUPUN33333330000000414 | B126: 03/2006 | C126: =Calculation!B128 -> 10567 | D126: =Calculation!D128 -> 880 | E126: =Calculation!E128 -> 0 | F126: =Calculation!F128 -> 541 | G126: =Calculation!J128 -> 576 | H126: 8.50 | I126: PUPUN33333330000000414#~#03/2006#~#10567#~#880#~#0#~#541#~#576#~#8.50
A127: PUPUN33333330000000414 | B127: 04/2006 | C127: =Calculation!B129 -> 10817 | D127: =Calculation!D129 -> 901 | E127: =Calculation!E129 -> 0 | F127: =Calculation!F129 -> 541 | G127: =Calculation!J129 -> 600 | H127: 8.50 | I127: PUPUN33333330000000414#~#04/2006#~#10817#~#901#~#0#~#541#~#600#~#8.50
A128: PUPUN33333330000000414 | B128: 05/2006 | C128: =Calculation!B130 -> 10792 | D128: =Calculation!D130 -> 899 | E128: =Calculation!E130 -> 0 | F128: =Calculation!F130 -> 541 | G128: =Calculation!J130 -> 600 | H128: 8.50 | I128: PUPUN33333330000000414#~#05/2006#~#10792#~#899#~#0#~#541#~#600#~#8.50
A129: PUPUN33333330000000414 | B129: 06/2006 | C129: =Calculation!B131 -> 12233 | D129: =Calculation!D131 -> 1019 | E129: =Calculation!E131 -> 0 | F129: =Calculation!F131 -> 541 | G129: =Calculation!J131 -> 723 | H129: 8.50 | I129: PUPUN33333330000000414#~#06/2006#~#12233#~#1019#~#0#~#541#~#723#~#8.50
A130: PUPUN33333330000000414 | B130: 07/2006 | C130: =Calculation!B132 -> 13025 | D130: =Calculation!D132 -> 1085 | E130: =Calculation!E132 -> 0 | F130: =Calculation!F132 -> 541 | G130: =Calculation!J132 -> 792 | H130: 8.50 | I130: =CONCATENATE(A130,"#~#",B130,"#~#",C130,"#~#",D130,"#~#",E130,"#~#",F130,"#~#",G130,"#~#",H130) -> PUPUN33333330000000414#~#07/2006#~#13025#~#1085#~#0#~#541#~#792#~#8.50
A131: PUPUN33333330000000414 | B131: 08/2006 | C131: =Calculation!B133 -> 13908 | D131: =Calculation!D133 -> 1159 | E131: =Calculation!E133 -> 0 | F131: =Calculation!F133 -> 541 | G131: =Calculation!J133 -> 870 | H131: 8.50 | I131: PUPUN33333330000000414#~#08/2006#~#13908#~#1159#~#0#~#541#~#870#~#8.50
A132: PUPUN33333330000000414 | B132: 09/2006 | C132: =Calculation!B134 -> 13267 | D132: =Calculation!D134 -> 1105 | E132: =Calculation!E134 -> 0 | F132: =Calculation!F134 -> 541 | G132: =Calculation!J134 -> 821 | H132: 8.50 | I132: PUPUN33333330000000414#~#09/2006#~#13267#~#1105#~#0#~#541#~#821#~#8.50
A133: PUPUN33333330000000414 | B133: 10/2006 | C133: =Calculation!B135 -> 13367 | D133: =Calculation!D135 -> 1113 | E133: =Calculation!E135 -> 0 | F133: =Calculation!F135 -> 541 | G133: =Calculation!J135 -> 833 | H133: 8.50 | I133: PUPUN33333330000000414#~#10/2006#~#13367#~#1113#~#0#~#541#~#833#~#8.50
A134: PUPUN33333330000000414 | B134: 11/2006 | C134: =Calculation!B136 -> 13408 | D134: =Calculation!D136 -> 1117 | E134: =Calculation!E136 -> 0 | F134: =Calculation!F136 -> 541 | G134: =Calculation!J136 -> 841 | H134: 8.50 | I134: PUPUN33333330000000414#~#11/2006#~#13408#~#1117#~#0#~#541#~#841#~#8.50
A135: PUPUN33333330000000414 | B135: 12/2006 | C135: =Calculation!B137 -> 13583 | D135: =Calculation!D137 -> 1131 | E135: =Calculation!E137 -> 0 | F135: =Calculation!F137 -> 541 | G135: =Calculation!J137 -> 859 | H135: 8.50 | I135: PUPUN33333330000000414#~#12/2006#~#13583#~#1131#~#0#~#541#~#859#~#8.50
A136: PUPUN33333330000000414 | B136: 01/2007 | C136: =Calculation!B138 -> 13500 | D136: =Calculation!D138 -> 1125 | E136: =Calculation!E138 -> 0 | F136: =Calculation!F138 -> 541 | G136: =Calculation!J138 -> 857 | H136: 8.50 | I136: PUPUN33333330000000414#~#01/2007#~#13500#~#1125#~#0#~#541#~#857#~#8.50
A137: PUPUN33333330000000414 | B137: 02/2007 | C137: =Calculation!B139 -> 13483 | D137: =Calculation!D139 -> 1123 | E137: =Calculation!E139 -> 0 | F137: =Calculation!F139 -> 541 | G137: =Calculation!J139 -> 859 | H137: 8.50 | I137: PUPUN33333330000000414#~#02/2007#~#13483#~#1123#~#0#~#541#~#859#~#8.50
A138: PUPUN33333330000000414 | B138: 03/2007 | C138: =Calculation!B140 -> 13583 | D138: =Calculation!D140 -> 1131 | E138: =Calculation!E140 -> 0 | F138: =Calculation!F140 -> 541 | G138: =Calculation!J140 -> 893 | H138: 8.50 | I138: PUPUN33333330000000414#~#03/2007#~#13583#~#1131#~#0#~#541#~#893#~#8.50
A139: PUPUN33333330000000414 | B139: 04/2007 | C139: =Calculation!B141 -> 13583 | D139: =Calculation!D141 -> 1131 | E139: =Calculation!E141 -> 0 | F139: =Calculation!F141 -> 541 | G139: =Calculation!J141 -> 897 | H139: 8.50 | I139: PUPUN33333330000000414#~#04/2007#~#13583#~#1131#~#0#~#541#~#897#~#8.50
A140: PUPUN33333330000000414 | B140: 05/2007 | C140: =Calculation!B142 -> 13600 | D140: =Calculation!D142 -> 1133 | E140: =Calculation!E142 -> 0 | F140: =Calculation!F142 -> 541 | G140: =Calculation!J142 -> 903 | H140: 8.50 | I140: PUPUN33333330000000414#~#05/2007#~#13600#~#1133#~#0#~#541#~#903#~#8.50
A141: PUPUN33333330000000414 | B141: 06/2007 | C141: =Calculation!B143 -> 9267 | D141: =Calculation!D143 -> 772 | E141: =Calculation!E143 -> 0 | F141: =Calculation!F143 -> 541 | G141: =Calculation!J143 -> 546 | H141: 8.50 | I141: PUPUN33333330000000414#~#06/2007#~#9267#~#772#~#0#~#541#~#546#~#8.50
A142: PUPUN33333330000000414 | B142: 07/2007 | C142: =Calculation!B144 -> 12075 | D142: =Calculation!D144 -> 1006 | E142: =Calculation!E144 -> 0 | F142: =Calculation!F144 -> 541 | G142: =Calculation!J144 -> 782 | H142: 8.50 | I142: PUPUN33333330000000414#~#07/2007#~#12075#~#1006#~#0#~#541#~#782#~#8.50
A143: PUPUN33333330000000414 | B143: 08/2007 | C143: =Calculation!B145 -> 12208 | D143: =Calculation!D145 -> 1017 | E143: =Calculation!E145 -> 0 | F143: =Calculation!F145 -> 541 | G143: =Calculation!J145 -> 796 | H143: 8.50 | I143: PUPUN33333330000000414#~#08/2007#~#12208#~#1017#~#0#~#541#~#796#~#8.50
A144: PUPUN33333330000000414 | B144: 09/2007 | C144: =Calculation!B146 -> 12283 | D144: =Calculation!D146 -> 1023 | E144: =Calculation!E146 -> 0 | F144: =Calculation!F146 -> 541 | G144: =Calculation!J146 -> 806 | H144: 8.50 | I144: PUPUN33333330000000414#~#09/2007#~#12283#~#1023#~#0#~#541#~#806#~#8.50
A145: PUPUN33333330000000414 | B145: 10/2007 | C145: =Calculation!B147 -> 12258 | D145: =Calculation!D147 -> 1021 | E145: =Calculation!E147 -> 0 | F145: =Calculation!F147 -> 541 | G145: =Calculation!J147 -> 807 | H145: 8.50 | I145: PUPUN33333330000000414#~#10/2007#~#12258#~#1021#~#0#~#541#~#807#~#8.50
A146: PUPUN33333330000000414 | B146: 11/2007 | C146: =Calculation!B148 -> 12333 | D146: =Calculation!D148 -> 1027 | E146: =Calculation!E148 -> 0 | F146: =Calculation!F148 -> 541 | G146: =Calculation!J148 -> 817 | H146: 8.50 | I146: PUPUN33333330000000414#~#11/2007#~#12333#~#1027#~#0#~#541#~#817#~#8.50
A147: PUPUN33333330000000414 | B147: 12/2007 | C147: =Calculation!B149 -> 12475 | D147: =Calculation!D149 -> 1039 | E147: =Calculation!E149 -> 0 | F147: =Calculation!F149 -> 541 | G147: =Calculation!J149 -> 832 | H147: 8.50 | I147: PUPUN33333330000000414#~#12/2007#~#12475#~#1039#~#0#~#541#~#832#~#8.50
A148: PUPUN33333330000000414 | B148: 01/2008 | C148: =Calculation!B150 -> 12408 | D148: =Calculation!D150 -> 1034 | E148: =Calculation!E150 -> 0 | F148: =Calculation!F150 -> 541 | G148: =Calculation!J150 -> 830 | H148: 8.50 | I148: PUPUN33333330000000414#~#01/2008#~#12408#~#1034#~#0#~#541#~#830#~#8.50
A149: PUPUN33333330000000414 | B149: 02/2008 | C149: =Calculation!B151 -> 13858 | D149: =Calculation!D151 -> 1154 | E149: =Calculation!E151 -> 0 | F149: =Calculation!F151 -> 541 | G149: =Calculation!J151 -> 954 | H149: 8.50 | I149: PUPUN33333330000000414#~#02/2008#~#13858#~#1154#~#0#~#541#~#954#~#8.50
A150: PUPUN33333330000000414 | B150: 03/2008 | C150: =Calculation!B152 -> 12942 | D150: =Calculation!D152 -> 1078 | E150: =Calculation!E152 -> 0 | F150: =Calculation!F152 -> 541 | G150: =Calculation!J152 -> 910 | H150: 8.50 | I150: PUPUN33333330000000414#~#03/2008#~#12942#~#1078#~#0#~#541#~#910#~#8.50
A151: PUPUN33333330000000414 | B151: 04/2008 | C151: =Calculation!B153 -> 12475 | D151: =Calculation!D153 -> 1039 | E151: =Calculation!E153 -> 0 | F151: =Calculation!F153 -> 541 | G151: =Calculation!J153 -> 875 | H151: 8.50 | I151: PUPUN33333330000000414#~#04/2008#~#12475#~#1039#~#0#~#541#~#875#~#8.50
A152: PUPUN33333330000000414 | B152: 05/2008 | C152: =Calculation!B154 -> 12600 | D152: =Calculation!D154 -> 1050 | E152: =Calculation!E154 -> 0 | F152: =Calculation!F154 -> 541 | G152: =Calculation!J154 -> 889 | H152: 8.50 | I152: PUPUN33333330000000414#~#05/2008#~#12600#~#1050#~#0#~#541#~#889#~#8.50
A153: PUPUN33333330000000414 | B153: 06/2008 | C153: =Calculation!B155 -> 12592 | D153: =Calculation!D155 -> 1049 | E153: =Calculation!E155 -> 0 | F153: =Calculation!F155 -> 541 | G153: =Calculation!J155 -> 892 | H153: 8.50 | I153: PUPUN33333330000000414#~#06/2008#~#12592#~#1049#~#0#~#541#~#892#~#8.50
A154: PUPUN33333330000000414 | B154: 07/2008 | C154: =Calculation!B156 -> 12742 | D154: =Calculation!D156 -> 1061 | E154: =Calculation!E156 -> 0 | F154: =Calculation!F156 -> 541 | G154: =Calculation!J156 -> 907 | H154: 8.50 | I154: PUPUN33333330000000414#~#07/2008#~#12742#~#1061#~#0#~#541#~#907#~#8.50
A155: PUPUN33333330000000414 | B155: 08/2008 | C155: =Calculation!B157 -> 12800 | D155: =Calculation!D157 -> 1066 | E155: =Calculation!E157 -> 0 | F155: =Calculation!F157 -> 541 | G155: =Calculation!J157 -> 916 | H155: 8.50 | I155: PUPUN33333330000000414#~#08/2008#~#12800#~#1066#~#0#~#541#~#916#~#8.50
A156: PUPUN33333330000000414 | B156: 09/2008 | C156: =Calculation!B158 -> 12925 | D156: =Calculation!D158 -> 1077 | E156: =Calculation!E158 -> 0 | F156: =Calculation!F158 -> 541 | G156: =Calculation!J158 -> 931 | H156: 8.50 | I156: PUPUN33333330000000414#~#09/2008#~#12925#~#1077#~#0#~#541#~#931#~#8.50
A157: PUPUN33333330000000414 | B157: 10/2008 | C157: =Calculation!B159 -> 12992 | D157: =Calculation!D159 -> 1082 | E157: =Calculation!E159 -> 0 | F157: =Calculation!F159 -> 541 | G157: =Calculation!J159 -> 939 | H157: 8.50 | I157: PUPUN33333330000000414#~#10/2008#~#12992#~#1082#~#0#~#541#~#939#~#8.50
A158: PUPUN33333330000000414 | B158: 11/2008 | C158: =Calculation!B160 -> 13058 | D158: =Calculation!D160 -> 1088 | E158: =Calculation!E160 -> 0 | F158: =Calculation!F160 -> 541 | G158: =Calculation!J160 -> 949 | H158: 8.50 | I158: PUPUN33333330000000414#~#11/2008#~#13058#~#1088#~#0#~#541#~#949#~#8.50
A159: PUPUN33333330000000414 | B159: 12/2008 | C159: =Calculation!B161 -> 13383 | D159: =Calculation!D161 -> 1115 | E159: =Calculation!E161 -> 0 | F159: =Calculation!F161 -> 541 | G159: =Calculation!J161 -> 980 | H159: 8.50 | I159: PUPUN33333330000000414#~#12/2008#~#13383#~#1115#~#0#~#541#~#980#~#8.50
A160: PUPUN33333330000000414 | B160: 01/2009 | C160: =Calculation!B162 -> 13325 | D160: =Calculation!D162 -> 1110 | E160: =Calculation!E162 -> 0 | F160: =Calculation!F162 -> 541 | G160: =Calculation!J162 -> 979 | H160: 8.50 | I160: PUPUN33333330000000414#~#01/2009#~#13325#~#1110#~#0#~#541#~#979#~#8.50
A161: PUPUN33333330000000414 | B161: 02/2009 | C161: =Calculation!B163 -> 14600 | D161: =Calculation!D163 -> 1216 | E161: =Calculation!E163 -> 0 | F161: =Calculation!F163 -> 541 | G161: =Calculation!J163 -> 1089 | H161: 8.50 | I161: PUPUN33333330000000414#~#02/2009#~#14600#~#1216#~#0#~#541#~#1089#~#8.50
A162: PUPUN33333330000000414 | B162: 03/2009 | C162: =Calculation!B164 -> 13458 | D162: =Calculation!D164 -> 1121 | E162: =Calculation!E164 -> 0 | F162: =Calculation!F164 -> 541 | G162: =Calculation!J164 -> 1032 | H162: 8.50 | I162: PUPUN33333330000000414#~#03/2009#~#13458#~#1121#~#0#~#541#~#1032#~#8.50
A163: PUPUN33333330000000414 | B163: 04/2009 | C163: =Calculation!B165 -> 13383 | D163: =Calculation!D165 -> 1115 | E163: =Calculation!E165 -> 0 | F163: =Calculation!F165 -> 541 | G163: =Calculation!J165 -> 1031 | H163: 8.50 | I163: PUPUN33333330000000414#~#04/2009#~#13383#~#1115#~#0#~#541#~#1031#~#8.50
A164: PUPUN33333330000000414 | B164: 05/2009 | C164: =Calculation!B166 -> 13350 | D164: =Calculation!D166 -> 1112 | E164: =Calculation!E166 -> 0 | F164: =Calculation!F166 -> 541 | G164: =Calculation!J166 -> 1032 | H164: 8.50 | I164: PUPUN33333330000000414#~#05/2009#~#13350#~#1112#~#0#~#541#~#1032#~#8.50
A165: PUPUN33333330000000414 | B165: 06/2009 | C165: =Calculation!B167 -> 13500 | D165: =Calculation!D167 -> 1125 | E165: =Calculation!E167 -> 0 | F165: =Calculation!F167 -> 541 | G165: =Calculation!J167 -> 1049 | H165: 8.50 | I165: PUPUN33333330000000414#~#06/2009#~#13500#~#1125#~#0#~#541#~#1049#~#8.50
A166: PUPUN33333330000000414 | B166: 07/2009 | C166: =Calculation!B168 -> 13433 | D166: =Calculation!D168 -> 1119 | E166: =Calculation!E168 -> 0 | F166: =Calculation!F168 -> 541 | G166: =Calculation!J168 -> 1047 | H166: 8.50 | I166: PUPUN33333330000000414#~#07/2009#~#13433#~#1119#~#0#~#541#~#1047#~#8.50
A167: PUPUN33333330000000414 | B167: 08/2009 | C167: =Calculation!B169 -> 13483 | D167: =Calculation!D169 -> 1123 | E167: =Calculation!E169 -> 0 | F167: =Calculation!F169 -> 541 | G167: =Calculation!J169 -> 1055 | H167: 8.50 | I167: PUPUN33333330000000414#~#08/2009#~#13483#~#1123#~#0#~#541#~#1055#~#8.50
A168: PUPUN33333330000000414 | B168: 09/2009 | C168: =Calculation!B170 -> 13808 | D168: =Calculation!D170 -> 1150 | E168: =Calculation!E170 -> 0 | F168: =Calculation!F170 -> 541 | G168: =Calculation!J170 -> 1086 | H168: 8.50 | I168: PUPUN33333330000000414#~#09/2009#~#13808#~#1150#~#0#~#541#~#1086#~#8.50
A169: PUPUN33333330000000414 | B169: 10/2009 | C169: =Calculation!B171 -> 13983 | D169: =Calculation!D171 -> 1165 | E169: =Calculation!E171 -> 0 | F169: =Calculation!F171 -> 541 | G169: =Calculation!J171 -> 1105 | H169: 8.50 | I169: PUPUN33333330000000414#~#10/2009#~#13983#~#1165#~#0#~#541#~#1105#~#8.50
A170: PUPUN33333330000000414 | B170: 11/2009 | C170: =Calculation!B172 -> 13933 | D170: =Calculation!D172 -> 1161 | E170: =Calculation!E172 -> 0 | F170: =Calculation!F172 -> 541 | G170: =Calculation!J172 -> 1106 | H170: 8.50 | I170: PUPUN33333330000000414#~#11/2009#~#13933#~#1161#~#0#~#541#~#1106#~#8.50
A171: PUPUN33333330000000414 | B171: 12/2009 | C171: =Calculation!B173 -> 14183 | D171: =Calculation!D173 -> 1181 | E171: =Calculation!E173 -> 0 | F171: =Calculation!F173 -> 541 | G171: =Calculation!J173 -> 1130 | H171: 8.50 | I171: PUPUN33333330000000414#~#12/2009#~#14183#~#1181#~#0#~#541#~#1130#~#8.50
A172: PUPUN33333330000000414 | B172: 01/2010 | C172: =Calculation!B174 -> 12242 | D172: =Calculation!D174 -> 1020 | E172: =Calculation!E174 -> 0 | F172: =Calculation!F174 -> 541 | G172: =Calculation!J174 -> 974 | H172: 8.50 | I172: PUPUN33333330000000414#~#01/2010#~#12242#~#1020#~#0#~#541#~#974#~#8.50
A173: PUPUN33333330000000414 | B173: 02/2010 | C173: =Calculation!B175 -> 14642 | D173: =Calculation!D175 -> 1220 | E173: =Calculation!E175 -> 0 | F173: =Calculation!F175 -> 541 | G173: =Calculation!J175 -> 1177 | H173: 8.50 | I173: PUPUN33333330000000414#~#02/2010#~#14642#~#1220#~#0#~#541#~#1177#~#8.50
A174: PUPUN33333330000000414 | B174: 03/2010 | C174: =Calculation!B176 -> 14625 | D174: =Calculation!D176 -> 1218 | E174: =Calculation!E176 -> 0 | F174: =Calculation!F176 -> 541 | G174: =Calculation!J176 -> 1284 | H174: 9.50 | I174: PUPUN33333330000000414#~#03/2010#~#14625#~#1218#~#0#~#541#~#1284#~#9.50
A175: PUPUN33333330000000414 | B175: 04/2010 | C175: =Calculation!B177 -> 14442 | D175: =Calculation!D177 -> 1203 | E175: =Calculation!E177 -> 0 | F175: =Calculation!F177 -> 541 | G175: =Calculation!J177 -> 1275 | H175: 9.50 | I175: PUPUN33333330000000414#~#04/2010#~#14442#~#1203#~#0#~#541#~#1275#~#9.50
A176: PUPUN33333330000000414 | B176: 05/2010 | C176: =Calculation!B178 -> 14317 | D176: =Calculation!D178 -> 1193 | E176: =Calculation!E178 -> 0 | F176: =Calculation!F178 -> 541 | G176: =Calculation!J178 -> 1270 | H176: 9.50 | I176: PUPUN33333330000000414#~#05/2010#~#14317#~#1193#~#0#~#541#~#1270#~#9.50
A177: PUPUN33333330000000414 | B177: 06/2010 | C177: =Calculation!B179 -> 14375 | D177: =Calculation!D179 -> 1197 | E177: =Calculation!E179 -> 0 | F177: =Calculation!F179 -> 541 | G177: =Calculation!J179 -> 1279 | H177: 9.50 | I177: PUPUN33333330000000414#~#06/2010#~#14375#~#1197#~#0#~#541#~#1279#~#9.50
A178: PUPUN33333330000000414 | B178: 07/2010 | C178: =Calculation!B180 -> 14267 | D178: =Calculation!D180 -> 1188 | E178: =Calculation!E180 -> 0 | F178: =Calculation!F180 -> 541 | G178: =Calculation!J180 -> 1275 | H178: 9.50 | I178: PUPUN33333330000000414#~#07/2010#~#14267#~#1188#~#0#~#541#~#1275#~#9.50
A179: PUPUN33333330000000414 | B179: 08/2010 | C179: =Calculation!B181 -> 14617 | D179: =Calculation!D181 -> 1218 | E179: =Calculation!E181 -> 0 | F179: =Calculation!F181 -> 541 | G179: =Calculation!J181 -> 1310 | H179: 9.50 | I179: PUPUN33333330000000414#~#08/2010#~#14617#~#1218#~#0#~#541#~#1310#~#9.50
A180: PUPUN33333330000000414 | B180: 09/2010 | C180: =Calculation!B182 -> 14775 | D180: =Calculation!D182 -> 1231 | E180: =Calculation!E182 -> 0 | F180: =Calculation!F182 -> 541 | G180: =Calculation!J182 -> 1329 | H180: 9.50 | I180: PUPUN33333330000000414#~#09/2010#~#14775#~#1231#~#0#~#541#~#1329#~#9.50
A181: PUPUN33333330000000414 | B181: 10/2010 | C181: =Calculation!B183 -> 14908 | D181: =Calculation!D183 -> 1242 | E181: =Calculation!E183 -> 0 | F181: =Calculation!F183 -> 541 | G181: =Calculation!J183 -> 1345 | H181: 9.50 | I181: PUPUN33333330000000414#~#10/2010#~#14908#~#1242#~#0#~#541#~#1345#~#9.50
A182: PUPUN33333330000000414 | B182: 11/2010 | C182: =Calculation!B184 -> 15100 | D182: =Calculation!D184 -> 1258 | E182: =Calculation!E184 -> 0 | F182: =Calculation!F184 -> 541 | G182: =Calculation!J184 -> 1367 | H182: 9.50 | I182: PUPUN33333330000000414#~#11/2010#~#15100#~#1258#~#0#~#541#~#1367#~#9.50
A183: PUPUN33333330000000414 | B183: 12/2010 | C183: =Calculation!B185 -> 15308 | D183: =Calculation!D185 -> 1275 | E183: =Calculation!E185 -> 0 | F183: =Calculation!F185 -> 541 | G183: =Calculation!J185 -> 1389 | H183: 9.50 | I183: PUPUN33333330000000414#~#12/2010#~#15308#~#1275#~#0#~#541#~#1389#~#9.50
A184: PUPUN33333330000000414 | B184: 01/2011 | C184: =Calculation!B186 -> 15367 | D184: =Calculation!D186 -> 1280 | E184: =Calculation!E186 -> 0 | F184: =Calculation!F186 -> 541 | G184: =Calculation!J186 -> 1400 | H184: 9.50 | I184: PUPUN33333330000000414#~#01/2011#~#15367#~#1280#~#0#~#541#~#1400#~#9.50
A185: PUPUN33333330000000414 | B185: 02/2011 | C185: =Calculation!B187 -> 15492 | D185: =Calculation!D187 -> 1290 | E185: =Calculation!E187 -> 0 | F185: =Calculation!F187 -> 541 | G185: =Calculation!J187 -> 1416 | H185: 9.50 | I185: PUPUN33333330000000414#~#02/2011#~#15492#~#1290#~#0#~#541#~#1416#~#9.50
A186: PUPUN33333330000000414 | B186: 03/2011 | C186: =Calculation!B188 -> 15508 | D186: =Calculation!D188 -> 1292 | E186: =Calculation!E188 -> 0 | F186: =Calculation!F188 -> 541 | G186: =Calculation!J188 -> 1388 | H186: 8.25 | I186: PUPUN33333330000000414#~#03/2011#~#15508#~#1292#~#0#~#541#~#1388#~#8.25
A187: PUPUN33333330000000414 | B187: 04/2011 | C187: =Calculation!B189 -> 15433 | D187: =Calculation!D189 -> 1286 | E187: =Calculation!E189 -> 0 | F187: =Calculation!F189 -> 541 | G187: =Calculation!J189 -> 1387 | H187: 8.25 | I187: PUPUN33333330000000414#~#04/2011#~#15433#~#1286#~#0#~#541#~#1387#~#8.25
A188: PUPUN33333330000000414 | B188: 05/2011 | C188: =Calculation!B190 -> 15433 | D188: =Calculation!D190 -> 1286 | E188: =Calculation!E190 -> 0 | F188: =Calculation!F190 -> 541 | G188: =Calculation!J190 -> 1392 | H188: 8.25 | I188: PUPUN33333330000000414#~#05/2011#~#15433#~#1286#~#0#~#541#~#1392#~#8.25
A189: PUPUN33333330000000414 | B189: 06/2011 | C189: =Calculation!B191 -> 15400 | D189: =Calculation!D191 -> 1283 | E189: =Calculation!E191 -> 0 | F189: =Calculation!F191 -> 541 | G189: =Calculation!J191 -> 1394 | H189: 8.25 | I189: PUPUN33333330000000414#~#06/2011#~#15400#~#1283#~#0#~#541#~#1394#~#8.25
A190: PUPUN33333330000000414 | B190: 07/2011 | C190: =Calculation!B192 -> 15625 | D190: =Calculation!D192 -> 1302 | E190: =Calculation!E192 -> 0 | F190: =Calculation!F192 -> 541 | G190: =Calculation!J192 -> 1418 | H190: 8.25 | I190: PUPUN33333330000000414#~#07/2011#~#15625#~#1302#~#0#~#541#~#1418#~#8.25
A191: PUPUN33333330000000414 | B191: 08/2011 | C191: =Calculation!B193 -> 15808 | D191: =Calculation!D193 -> 1317 | E191: =Calculation!E193 -> 0 | F191: =Calculation!F193 -> 541 | G191: =Calculation!J193 -> 1439 | H191: 8.25 | I191: PUPUN33333330000000414#~#08/2011#~#15808#~#1317#~#0#~#541#~#1439#~#8.25
A192: PUPUN33333330000000414 | B192: 09/2011 | C192: =Calculation!B194 -> 15900 | D192: =Calculation!D194 -> 1324 | E192: =Calculation!E194 -> 0 | F192: =Calculation!F194 -> 541 | G192: =Calculation!J194 -> 1451 | H192: 8.25 | I192: PUPUN33333330000000414#~#09/2011#~#15900#~#1324#~#0#~#541#~#1451#~#8.25
A193: PUPUN33333330000000414 | B193: 10/2011 | C193: =Calculation!B195 -> 16100 | D193: =Calculation!D195 -> 1341 | E193: =Calculation!E195 -> 0 | F193: =Calculation!F195 -> 541 | G193: =Calculation!J195 -> 1473 | H193: 8.25 | I193: PUPUN33333330000000414#~#10/2011#~#16100#~#1341#~#0#~#541#~#1473#~#8.25
A194: PUPUN33333330000000414 | B194: 11/2011 | C194: =Calculation!B196 -> 16483 | D194: =Calculation!D196 -> 1373 | E194: =Calculation!E196 -> 0 | F194: =Calculation!F196 -> 541 | G194: =Calculation!J196 -> 1511 | H194: 8.25 | I194: =CONCATENATE(A194,"#~#",B194,"#~#",C194,"#~#",D194,"#~#",E194,"#~#",F194,"#~#",G194,"#~#",H194) -> PUPUN33333330000000414#~#11/2011#~#16483#~#1373#~#0#~#541#~#1511#~#8.25
A195: PUPUN33333330000000414 | B195: 12/2011 | C195: =Calculation!B197 -> 16608 | D195: =Calculation!D197 -> 1383 | E195: =Calculation!E197 -> 0 | F195: =Calculation!F197 -> 541 | G195: =Calculation!J197 -> 1527 | H195: 8.25 | I195: PUPUN33333330000000414#~#12/2011#~#16608#~#1383#~#0#~#541#~#1527#~#8.25
A196: PUPUN33333330000000414 | B196: 01/2012 | C196: =Calculation!B198 -> 16233 | D196: =Calculation!D198 -> 1352 | E196: =Calculation!E198 -> 0 | F196: =Calculation!F198 -> 541 | G196: =Calculation!J198 -> 1501 | H196: 8.25 | I196: PUPUN33333330000000414#~#01/2012#~#16233#~#1352#~#0#~#541#~#1501#~#8.25
A197: PUPUN33333330000000414 | B197: 02/2012 | C197: =Calculation!B199 -> 16483 | D197: =Calculation!D199 -> 1373 | E197: =Calculation!E199 -> 0 | F197: =Calculation!F199 -> 541 | G197: =Calculation!J199 -> 1528 | H197: 8.25 | I197: PUPUN33333330000000414#~#02/2012#~#16483#~#1373#~#0#~#541#~#1528#~#8.25
A198: PUPUN33333330000000414 | B198: 03/2012 | C198: =Calculation!B200 -> 16375 | D198: =Calculation!D200 -> 1364 | E198: =Calculation!E200 -> 0 | F198: =Calculation!F200 -> 541 | G198: =Calculation!J200 -> 1602 | H198: 8.50 | I198: PUPUN33333330000000414#~#03/2012#~#16375#~#1364#~#0#~#541#~#1602#~#8.50
A199: PUPUN33333330000000414 | B199: 04/2012 | C199: =Calculation!B201 -> 23583 | D199: =Calculation!D201 -> 1964 | E199: =Calculation!E201 -> 0 | F199: =Calculation!F201 -> 541 | G199: =Calculation!J201 -> 2208 | H199: 8.50 | I199: PUPUN33333330000000414#~#04/2012#~#23583#~#1964#~#0#~#541#~#2208#~#8.50
A200: PUPUN33333330000000414 | B200: 05/2012 | C200: =Calculation!B202 -> 24475 | D200: =Calculation!D202 -> 2039 | E200: =Calculation!E202 -> 0 | F200: =Calculation!F202 -> 541 | G200: =Calculation!J202 -> 2293 | H200: 8.50 | I200: PUPUN33333330000000414#~#05/2012#~#24475#~#2039#~#0#~#541#~#2293#~#8.50
... 131 more rows

Sheet Help
A1: 1 | B1: Update 1 in the D1 cell of the Calculation sheet if member is a pensioner and update 2 in case of non Pensioner/Live member
A2: 2 | B2: Update "Basic+D.A." in column no. 2 of the calculation sheet for the applicable months. For not applicable months update 0
A3: 3 | B3: Update pension contribution already paid in the column no. 6 "Pension Contribution On Pensionable Salary (Paid by the employer earlier)" of the Calculation sheet. For not applicable months update 0
A4: 4 | B4: Update Member ID is the column no. 1 of the Upload sheet
A5: 5 | B5: Interest rates considered as per EPFO. In case there is any change in the interest rate, you will have to change the rate in both the sheets
A6: 6 | B6: Copy only the applicable months from "Text" column of the Upload sheet and paste into a notepad to create Uploadable text file
A7: 7 | B7: Contribution cycle considered as March to Feb
A8: 8 | B8: Please do not Edit/Alter any value of the Yellow highlighted columns as it contains formula
A9: 9 | B9: For any assistance kindly get in touch with our support team
